Workbook

Sheet Лист1с формулами (hidden)
A3: Перечень многоквартирных домов
A4: № п/п | B4: Адрес многоквартирного дома | C4: Год | E4: Материал стен | F4: Количество этажей | G4: Количество подъездов | H4: Общая площадь многоквартирного дома, всего | I4: Площадь помещений многоквартирного дома | K4: Количество жителей, зарегистрированных в многоквартирном доме | L4: Стоимость капитального ремонта (за счет обязательных взносов собственников) | M4: Плановая дата завершения работ | N4: Плановая дата завершения работ
C5: ввода в эксплуатацию | D5: завершения последнего капитального ремонта | I5: всего | J5: в том числе жилых помещений, находящихся в собственности граждан
H7: кв. метров | I7: кв. метров | J7: кв. метров | K7: человек | L7: рублей
A8: Верхнеуфалейский городской округ
A9: 1 | B9: Город Верхний Уфалей, Ленина, 166 | C9: 1961 | E9: каменные, кирпичные | F9: 4 | G9: 3 | H9: =I9+142.6 -> 2231.5 | I9: 2088.9 | J9: 1312.2 | K9: 57 | L9: 2246534 | M9: ТС-2015; крыша, фундамент-2016
A10: 2 | B10: Город Верхний Уфалей, Победы, 49 | C10: 1958 | E10: блочные | F10: 2 | G10: 1 | H10: 869.8 | I10: 608.1 | J10: 219 | K10: 42 | L10: 2648707 | M10: ЭЭ, ХВС, крыша, фундамент, фасад-2015; ТС-2016
A11: Итого по Верхнеуфалейскому городскому округу | H11: =H9+H10 -> 3101.3 | I11: 2697 | J11: 1531.2 | K11: 99 | L11: =L9+L10 -> 4895241
A12: Златоустовский городской округ
A13: 3 | B13: Город Златоуст, Дворцовая, 16 | C13: 1957 | E13: каменные, кирпичные | F13: 5 | G13: 4 | H13: 4092.8 | I13: 3712.3 | J13: 3468.5 | K13: 139 | L13: 4934122 | M13: 2015
A14: 4 | B14: Город Златоуст, Дворцовая, 4 | C14: 1953 | E14: каменные, кирпичные | F14: 3 | G14: 2 | H14: 1274.2 | I14: 1146.78 | J14: 488.5 | K14: 12 | L14: 895900 | M14: 2015
A15: 5 | B15: Город Златоуст, имени Братьев Пудовкиных, 7 | C15: 1954 | E15: каменные, кирпичные | F15: 4 | G15: 1 | H15: 1971.9 | I15: 1774.71 | J15: 1331.03 | K15: 85 | L15: 252743 | M15: 2016
A16: 6 | B16: Город Златоуст, имени Карла Маркса, 12 | C16: 1954 | E16: каменные, кирпичные | F16: 4 | G16: 1 | H16: 701.5 | I16: 666.1 | J16: 499.58 | K16: 38 | L16: 192192 | M16: 2016
A17: 7 | B17: Город Златоуст, имени Карла Маркса, 13 | C17: 1953 | E17: каменные, кирпичные | F17: 5 | G17: 3 | H17: 2940.9 | I17: 2697.4 | J17: 2023.05 | K17: 96 | L17: 1369607 | M17: 2016
A18: 8 | B18: Город Златоуст, имени Карла Маркса, 19 | C18: 1951 | E18: каменные, кирпичные | F18: 3 | G18: 2 | H18: 1257.1 | I18: 1131.39 | J18: 848.54 | K18: 57 | L18: 371012 | M18: 2016
A19: 9 | B19: Город Златоуст, имени Карла Маркса, 23 | C19: 1950 | E19: каменные, кирпичные | F19: 3 | G19: 2 | H19: 1501.14 | I19: 1351.03 | J19: 1013.27 | K19: 42 | L19: 1228813 | M19: 2016
A20: 10 | B20: Город Златоуст, имени Карла Маркса, 43 | C20: 1947 | E20: каменные, кирпичные | F20: 3 | G20: 4 | H20: 3302.8 | I20: 3043.8 | J20: 2282.85 | K20: 102 | L20: 3124355 | M20: 2016
A21: 11 | B21: Город Златоуст, имени Карла Маркса, 49 | C21: 1957 | E21: каменные, кирпичные | F21: 4 | G21: 3 | H21: 3924.9 | I21: 3672.1 | J21: 2754.08 | K21: 149 | L21: 1785743 | M21: 2016
A22: 12 | B22: Город Златоуст, имени Карла Маркса, 8 | C22: 1954 | E22: каменные, кирпичные | F22: 4 | G22: 4 | H22: 3081.1 | I22: 2772.99 | J22: 2344.5 | K22: 110 | L22: 1325870 | M22: 2016
A23: 13 | B23: Город Златоуст, имени Н.П. Полетаева, 119 | C23: 1958 | E23: каменные, кирпичные | F23: 2 | G23: 1 | H23: 398.3 | I23: 358.47 | J23: 268.85 | K23: 14 | L23: 135428 | M23: 2016
A24: 14 | B24: Город Златоуст, имени П.А. Румянцева, 10 | C24: 1959 | E24: каменные, кирпичные | F24: 4 | G24: 3 | H24: 2402.2 | I24: 2221.4 | J24: 1666.05 | K24: 77 | L24: 1431578 | M24: 2016
A25: 15 | B25: Город Златоуст, имени П.П. Аносова, 251 | C25: 1958 | E25: каменные, кирпичные | F25: 5 | G25: 3 | H25: 3625.6 | I25: 2328.2 | J25: 1746.15 | K25: 81 | L25: 1970652 | M25: 2016
A26: 16 | B26: Город Златоуст, Машиностроителей, 29 | C26: 1960 | E26: каменные, кирпичные | F26: 5 | G26: 2 | H26: 1265 | I26: 1138.5 | J26: 853.88 | K26: 55 | L26: 367955 | M26: 2016
A27: 17 | B27: Город Златоуст, Машиностроителей, 37 | C27: 1961 | E27: каменные, кирпичные | F27: 4 | G27: 3 | H27: 2333 | I27: 2099.7 | J27: 1574.78 | K27: 66 | L27: 374572 | M27: 2016
A28: 18 | B28: Город Златоуст, Металлургов, 5 | C28: 1958 | E28: каменные, кирпичные | F28: 5 | G28: 4 | H28: 3247.2 | I28: 2927.7 | J28: 2927.7 | K28: 114 | L28: 1976124 | M28: 2016
A29: 19 | B29: Город Златоуст, Металлургов, 7 | C29: 1958 | E29: каменные, кирпичные | F29: 5 | G29: 4 | H29: 4990.2 | I29: 4570.6 | J29: 3427.95 | K29: 118 | L29: 2180678 | M29: 2016
A30: 20 | B30: Город Златоуст, проспект Мира, 12 | C30: 1952 | E30: каменные, кирпичные | F30: 4 | G30: 2 | H30: 2072.5 | I30: 1870.7 | J30: 1413.3 | K30: 36 | L30: 1292700 | M30: 2015
A31: 21 | B31: Город Златоуст, проспект Мира, 2 | C31: 1954 | E31: каменные, кирпичные | F31: 4 | G31: 3 | H31: 2765.3 | I31: 2490.1 | J31: 1967 | K31: 85 | L31: 4419276 | M31: ГВС, крыша, фасад-2015, ХВС -2016
A32: 22 | B32: Город Златоуст, имени М.А. Аникеева, 5 | C32: 1956 | E32: каменные, кирпичные | F32: 2 | G32: 3 | H32: 3512.9 | I32: 3161.6 | J32: 2371.2 | K32: 101 | L32: 1318954 | M32: 2016
A33: 23 | B33: Город Златоуст, имени М.И. Калинина, 1 | C33: 1928 | E33: каменные, кирпичные | F33: 3 | G33: 2 | H33: 1893.3 | I33: 1330.3 | J33: 1299.4 | K33: 57 | L33: 1032252 | M33: 2016
A34: 24 | B34: Город Златоуст,шоссе Кусинское, 1 | C34: 1948 | E34: каменные, кирпичные | F34: 2 | G34: 3 | H34: 406.7 | I34: 366.03 | J34: 299.52 | K34: 21 | L34: 174379 | M34: 2016
A35: 25 | B35: Город Златоуст, имени П.П. Аносова, 178 | C35: 1958 | E35: каменные, кирпичные | F35: 5 | G35: 4 | H35: 4901.6 | I35: 4370.1 | J35: 3368.6 | K35: 109 | L35: 3276726 | M35: 2016
A36: 26 | B36: Город Златоуст, Горькова, 5 | C36: 1950 | E36: каменные, кирпичные | F36: 4 | G36: 3 | H36: 2709 | I36: 2438.1 | J36: 1974.9 | K36: 79 | L36: 1021359 | M36: 2016
A37: 27 | B37: Город Златоуст, Тургенева, 4 | C37: 1955 | E37: каменные, кирпичные | F37: 3 | G37: 3 | H37: 1430.9 | I37: 1287.81 | J37: 1219.5 | K37: 48 | L37: 571295 | M37: 2016
A38: 28 | B38: Город Златоуст, Макаренко, 1 | C38: 1955 | E38: Каменные, кирпичные | F38: 4 | G38: 3 | H38: 2620.9 | I38: 2358.81 | J38: 2333.5 | K38: 70 | L38: 1005746 | M38: 2016
A39: 29 | B39: Город Златоуст, Макаренко, 6 | C39: 1956 | E39: Каменные, кирпичные | F39: 3 | G39: 3 | H39: 1465 | I39: 1341.6 | J39: 598.1 | K39: 56 | L39: 538984 | M39: 2016
A40: 30 | B40: Город Златоуст, 50-летия Октября, 11 | C40: 1957 | E40: каменные, кирпичные | F40: 3 | G40: 3 | H40: 2144.3 | I40: 1929.87 | J40: 1739.8 | K40: 68 | L40: 682610 | M40: 2016
A41: Итого по Златоустовскому городскому округу | H41: =SUM(H13:H40) -> 68232.24 | I41: 60558.19 | J41: 48104.08 | K41: 2085 | L41: =SUM(L13:L40) -> 39251625
A42: Карабашский городской округ
A43: 31 | B43: Город Карабаш, Ленина, 36 | C43: 1957 | E43: кирпичные | F43: 2 | G43: 2 | H43: 667 | I43: 648 | J43: 405 | K43: 17 | L43: 1014311 | M43: 2016
A44: 32 | B44: Город Карабаш, Ленина, 38 | C44: 1957 | E44: кирпичные | F44: 2 | G44: 2 | H44: 642 | I44: 403 | J44: 403 | K44: 24 | L44: 951700 | M44: 2016
A45: Итого по Карабашскому городскому округу | H45: =H44+H43 -> 1309 | I45: 1051 | J45: 808 | K45: 41 | L45: =L44+L43 -> 1966011
A46: Копейский городской округ
A47: 33 | B47: Поселок Советов, 3 | C47: 1950 | E47: блочные | F47: 2 | G47: 3 | H47: 984.9 | I47: 693.1 | J47: 693.1 | K47: 48 | L47: 1143879 | M47: 2016
A48: 34 | B48: Поселок Советов, 5 | C48: 1949 | E48: блочные | F48: 2 | G48: 3 | H48: 961.8 | I48: 892.4 | J48: 605.82 | K48: 52 | L48: 2897455 | M48: 2016
A49: 35 | B49: Город Копейск, переулок Больничный, 1 | C49: 1937 | E49: кирпичные | F49: 2 | G49: 2 | H49: 598.5 | I49: 521.3 | J49: 364.5 | K49: 21 | L49: 657031 | M49: 2016
A50: 36 | B50: Город Копейск, переулок Больничный, 3 | C50: 1937 | E50: кирпичные | F50: 2 | G50: 2 | H50: 589 | I50: 352.5 | J50: 352.5 | K50: 19 | L50: 768141 | M50: 2016
A51: 37 | B51: Город Копейск, переулок Больничный, 5 | C51: 1937 | E51: кирпичные | F51: 2 | G51: 2 | H51: 596.4 | I51: 518 | J51: 362.9 | K51: 19 | L51: 738735 | M51: 2016
A52: 38 | B52: Город Копейск, Бажова, 21 | C52: 1951 | E52: блочные | F52: 3 | G52: 3 | H52: 2088.6 | I52: 1425 | J52: 859.4 | K52: 58 | L52: 1523108 | M52: 2016
A53: 39 | B53: Город Копейск, Бажова, 5 | C53: 1955 | E53: блочные | F53: 2 | G53: 3 | H53: 1880.5 | I53: 1439.4 | J53: 944.7 | K53: 52 | L53: 1470045 | M53: 2016
A54: 40 | B54: Город Копейск, Гастелло, 6 | C54: 1953 | E54: блочные | F54: 2 | G54: 2 | H54: 426.1 | I54: 382.1 | J54: 267.6 | K54: 25 | L54: 1617486 | M54: 2016
A55: 41 | B55: Город Копейск, Грибоедова, 20 | C55: 1940 | E55: кирпичные | F55: 2 | G55: 2 | H55: 697.1 | I55: 612.5 | J55: 348.8 | K55: 29 | L55: 1446193 | M55: 2016
A56: 42 | B56: Город Копейск, Коммунистическая, 17 | C56: 1949 | E56: блочные | F56: 2 | G56: 4 | H56: 1037.6 | I56: 517.6 | J56: 517.6 | K56: 41 | L56: 1740831 | M56: 2016
A57: 43 | B57: Город Копейск, Коммунистическая, 19 | C57: 1949 | E57: кирпичные | F57: 2 | G57: 2 | H57: 806 | I57: 750.6 | J57: 495.1 | K57: 39 | L57: 936031 | M57: 2016
A58: 44 | B58: Город Копейск, Чкалова, 32 | C58: 1955 | E58: блочные | F58: 2 | G58: 1 | H58: 575.7 | I58: 534.8 | J58: 341.2 | K58: 23 | L58: 1035252 | M58: 2016
A59: 45 | B59: Город Копейск, Электровозная, 7 | C59: 1956 | E59: кирпичные | F59: 2 | G59: 3 | H59: 726.5 | I59: 269.7 | J59: 269.7 | K59: 34 | L59: 2217504 | M59: 2016
A60: 46 | B60: Город Копейск, Васенко, 11 | C60: 1937 | E60: кирпичные | F60: 2 | G60: 2 | H60: 605.7 | I60: 395.3 | J60: 366.7 | K60: 22 | L60: 1389485 | M60: 2016
A61: 47 | B61: Город Копейск, Васенко, 9 | C61: 1938 | E61: кирпичные | F61: 2 | G61: 2 | H61: 562.1 | I61: 484.8 | J61: 342.9 | K61: 22 | L61: 1445745 | M61: 2016
A62: 48 | B62: Город Копейск, Электровозная, 7А | C62: 1955 | E62: блочные | F62: 2 | G62: 1 | H62: 518 | I62: 482.5 | J62: 306.3 | K62: 10 | L62: 481003 | M62: 2016
A63: 49 | B63: Город Копейск, Медиков, 7 | C63: 1951 | E63: блочные | F63: 2 | G63: 1 | H63: 392.6 | I63: 236 | J63: 236 | K63: 18 | L63: 437247 | M63: 2016
A64: Итого по Копейскому городскому округу | H64: =SUM(H47:H63) -> 14047.1 | I64: 10507.6 | J64: 7674.82 | K64: 532 | L64: =SUM(L47:L63) -> 21945171
A65: Кыштымский городской округ
A66: 50 | B66: Город Кыштым, Дёмина, 12 | C66: 1968 | E66: панельные | F66: 5 | G66: 8 | H66: 7462.5 | I66: 5733.76 | J66: 5733.76 | K66: 221 | L66: 1679953 | M66: 2016
A67: 51 | B67: Город Кыштым, Дёмина, 14 | C67: 1971 | E67: панельные | F67: 5 | G67: 8 | H67: 7619.5 | I67: 5792 | J67: 5685.2 | K67: 213 | L67: 1685598 | M67: 2016
A68: 52 | B68: Город Кыштым, Дёмина, 8 | C68: 1966 | E68: блочные | F68: 5 | G68: 4 | H68: 4184.9 | I68: 3440.73 | J68: 3248.63 | K68: 141 | L68: 1158054 | M68: 2016
A69: 53 | B69: Город Кыштым, Карла Либкнехта, 115 | C69: 1971 | E69: блочные | F69: 5 | G69: 8 | H69: 8084.9 | I69: 7543.58 | J69: 6037.78 | K69: 216 | L69: 2013487 | M69: 2016
A70: Итого по Кыштымскому городскому округу | H70: =SUM(H66:H69) -> 27351.8 | I70: 22510.07 | J70: 20705.37 | K70: 791 | L70: 6537092
A71: Магнитогорский городской округ
A72: 54 | B72: Город Магнитогорск, Бахметьева, 17 | C72: 1957 | E72: блочные | F72: 2 | G72: 2 | H72: 1148.9 | I72: 634.2 | J72: 548.3 | K72: 31 | L72: 2490205 | M72: 2016
A73: 55 | B73: Город Магнитогорск, Бахметьева, 21 | C73: 1954 | E73: блочные | F73: 2 | G73: 2 | H73: 470.8 | I73: 419.4 | J73: 419.4 | K73: 30 | L73: 1936162 | M73: 2016
A74: 56 | B74: Город Магнитогорск, Володарского, 26 | C74: 1957 | E74: блочные | F74: 3 | G74: 2 | H74: 1320.6 | I74: 1169 | J74: 997.3 | K74: 54 | L74: 2668268 | M74: 2016
A75: 57 | B75: Город Магнитогорск, Достоевского, 32А | C75: 1954 | E75: смешанные | F75: 2 | G75: 3 | H75: 892.3 | I75: 765.7 | J75: 598.8 | K75: 51 | L75: 276360 | M75: 2016
A76: 58 | B76: Город Магнитогорск, Комсомольская, 14 | C76: 1948 | E76: каменные, кирпичные | F76: 3 | G76: 4 | H76: 2692.8 | I76: 2252.9 | J76: 1627 | K76: 73 | L76: 3156200 | M76: 2016
A77: 59 | B77: Город Магнитогорск, Комсомольская, 77 | C77: 1955 | E77: блочные | F77: 3 | G77: 4 | H77: 3078.8 | I77: 2751 | J77: 1835.9 | K77: 102 | L77: 4885049 | M77: 2016
A78: 60 | B78: Город Магнитогорск, Комсомольская, 18 | C78: 1948 | E78: каменные, кирпичные | F78: 3 | G78: 4 | H78: 3060.77 | I78: 2318.17 | J78: 1666.97 | K78: 64 | L78: 4451830 | M78: 2016
A79: 61 | B79: Город Магнитогорск, Ленинградская, 22 | C79: 1955 | E79: смешанные | F79: 5 | G79: 5 | H79: 9450.47 | I79: 6315.6 | J79: 5336.2 | K79: 198 | L79: 2016182 | M79: 2016
A80: 62 | B80: Город Магнитогорск, Ленинградская, 22, корпус 1 | C80: 1955 | E80: смешанные | F80: 4 | G80: 3 | H80: 4161.32 | I80: 2670.4 | J80: 2440.7 | K80: 91 | L80: 1400492 | M80: 2016
A81: 63 | B81: Город Магнитогорск, Лениградская, 5, корпус 2 | C81: 1957 | E81: смешанные | F81: 4 | G81: 4 | H81: 5834.9 | I81: 3690 | J81: 3315.8 | K81: 133 | L81: 446400 | M81: 2016
A82: 64 | B82: Город Магнитогорск, Ломоносова, 22, корпус 1 | C82: 1949 | E82: каменные, кирпичные | F82: 2 | G82: 2 | H82: 788.6 | I82: 553.2 | J82: 472.8 | K82: 38 | L82: 2287693 | M82: 2016
A83: 65 | B83: Город Магнитогорск, Маяковского, 19 | C83: 1951 | E83: каменные, кирпичные | F83: 4 | G83: 9 | H83: 7970.27 | I83: 7235.47 | J83: 5845.07 | K83: 287 | L83: 8745323 | M83: 2016
A84: 66 | B84: Город Магнитогорск, Менделеева, 17, корпус 1 | C84: 1946 | E84: смешанные | F84: 2 | G84: 2 | H84: 1087.4 | I84: 802.1 | J84: 696 | K84: 8 | L84: 4088067 | M84: 2016
A85: 67 | B85: Город Магнитогорск, Менделеева, 18 | C85: 1946 | E85: смешанные | F85: 2 | G85: 2 | H85: 1046.2 | I85: 516.6 | J85: 477.3 | K85: 21 | L85: 913880 | M85: 2016
A86: 68 | B86: Город Магнитогорск, Менделеева, 22/1 | C86: 1945 | E86: блочные | F86: 2 | G86: 2 | H86: 579.8 | I86: 495 | J86: 456.7 | K86: 29 | L86: 1084550 | M86: 2016
A87: 69 | B87: Город Магнитогорск, Менделеева, 22 | C87: 1946 | E87: смешанные | F87: 2 | G87: 2 | H87: 608.01 | I87: 281.8 | J87: 281.8 | K87: 12 | L87: 415400 | M87: 2016
A88: 70 | B88: Город Магнитогорск, Менделеева, 24 | C88: 1946 | E88: смешанные | F88: 2 | G88: 2 | H88: 1060.41 | I88: 514.4 | J88: 474.4 | K88: 22 | L88: 916174 | M88: 2016
A89: 71 | B89: Город Магнитогорск, Менделеева, 25 | C89: 1948 | E89: каменные, кирпичные | F89: 3 | G89: 2 | H89: 1278.1 | I89: 981.2 | J89: 941.4 | K89: 38 | L89: 919360 | M89: 2016
A90: 72 | B90: Город Магнитогорск, Менделеева, 26 | C90: 1946 | E90: смешанные | F90: 2 | G90: 2 | H90: 1056.47 | I90: 516.2 | J90: 516.2 | K90: 23 | L90: 900085 | M90: 2016
A91: 73 | B91: Город Магнитогорск, Московская, 28 | C91: 1958 | E91: смешанные | F91: 3 | G91: 3 | H91: 2148.06 | I91: 1908.36 | J91: 1747.76 | K91: 95 | L91: 1866595 | M91: 2016
A92: 74 | B92: Город Магнитогорск, Московская, 34 | C92: 1957 | E92: смешанные | F92: 2 | G92: 3 | H92: 1385.02 | I92: 1209.62 | J92: 773.82 | K92: 68 | L92: 888770 | M92: 2016
A93: 75 | B93: Город Магнитогорск, Салтыкова - Щедрина, 15 | C93: 1954 | E93: блочные | F93: 2 | G93: 2 | H93: 433 | I93: 385.50 | J93: 385.5 | K93: 17 | L93: 1717462 | M93: 2016
A94: 76 | B94: Город Магнитогорск, Панькова, 26, корпус 1 | C94: 1954 | E94: блочные | F94: 2 | G94: 2 | H94: 468 | I94: 413.53 | J94: 290.33 | K94: 28 | L94: 2305272 | M94: 2016
A95: 77 | B95: Город Магнитогорск, Писарева, 20 | C95: 1959 | E95: смешанные | F95: 3 | G95: 2 | H95: 1187.7 | I95: 1065.3 | J95: 920 | K95: 52 | L95: 860405 | M95: 2016
A96: 78 | B96: Город Магнитогорск, Первомайская, 11 | C96: 1953 | E96: блочные | F96: 3 | G96: 2 | H96: 1953.2 | I96: 1686.2 | J96: 1074.2 | K96: 116 | L96: 3916884 | M96: 2016
A97: 79 | B97: Город Магнитогорск, площадь Горького, 6 | C97: 1948 | E97: каменные, кирпичные | F97: 4 | G97: 3 | H97: 1717.5 | I97: 1500.5 | J97: 1182.7 | K97: 31 | L97: 3071300 | M97: 2016
A98: 80 | B98: Город Магнитогорск, проспект Ленина, 58 | C98: 1958 | E98: смешанные | F98: 5 | G98: 4 | H98: 4146.5 | I98: 2743.4 | J98: 2068.7 | K98: 86 | L98: 707599 | M98: 2016
A99: 81 | B99: Город Магнитогорск, проспект Ленина, 58, корпус 1 | C99: 1958 | E99: смешанные | F99: 5 | G99: 4 | H99: 5158.3 | I99: 3326.5 | J99: 3069.8 | K99: 117 | L99: 862975 | M99: 2016
A100: 82 | B100: Город Магнитогорск, проспект Ленина, 60 | C100: 1958 | E100: смешанные | F100: 5 | G100: 4 | H100: 4141.4 | I100: 2568.8 | J100: 2066.9 | K100: 71 | L100: 651730 | M100: 2016
A101: 83 | B101: Город Магнитогорск, проспект Металлургов, 9 | C101: 1952 | E101: смешанные | F101: 5 | G101: 6 | H101: 9566.47 | I101: 6261.65 | J101: 4997.15 | K101: 156 | L101: 2945729 | M101: 2016
A102: 84 | B102: Город Магнитогорск, проспект Металлургов, 9, корпус 1 | C102: 1952 | E102: смешанные | F102: 3 | G102: 4 | H102: 4054.83 | I102: 2218.6 | J102: 2038.7 | K102: 83 | L102: 1826100 | M102: 2016
A103: 85 | B103: Город Магнитогорск, проспект Металлургов, 11 | C103: 1953 | E103: смешанные | F103: 8 | G103: 3 | H103: 8688.48 | I103: 6200.24 | J103: 4559.2 | K103: 229 | L103: 1794169 | M103: 2016
A104: 86 | B104: Город Магнитогорск, проспект Металлургов, 16 | C104: 1951 | E104: смешанные | F104: 5 | G104: 5 | H104: 5977.5 | I104: 4524.8 | J104: 3635.8 | K104: 144 | L104: 1436787 | M104: 2016
A105: 87 | B105: Город Магнитогорск, проспект Металлургов, 20 | C105: 1957 | E105: каменные, кирпичные | F105: 7 | G105: 2 | H105: 7918.7 | I105: 5443.6 | J105: 3268.4 | K105: 91 | L105: 1719840 | M105: 2015
A106: 88 | B106: Город Магнитогорск, Советская, 23А | C106: 1955 | E106: смешанные | F106: 2 | G106: 3 | H106: 898.4 | I106: 768.1 | J106: 621.5 | K106: 28 | L106: 1017875 | M106: 2016
A107: 89 | B107: Город Магнитогорск, Советская, 27 | C107: 1955 | E107: смешанные | F107: 3 | G107: 2 | H107: 867.1 | I107: 761.2 | J107: 592.7 | K107: 44 | L107: 1775014 | M107: 2016
A108: 90 | B108: Город Магнитогорск, Советская, 29 | C108: 1955 | E108: смешанные | F108: 3 | G108: 3 | H108: 1496.7 | I108: 1355.8 | J108: 1090.5 | K108: 68 | L108: 2274491 | M108: 2016
A109: 91 | B109: Город Магнитогорск, Советская,35 | C109: 1954 | E109: смешанные | F109: 2 | G109: 3 | H109: 894.4 | I109: 764.3 | J109: 614 | K109: 75 | L109: 1626676 | M109: 2016
A110: 92 | B110: Город Магнитогорск, Советская, 31 | C110: 1955 | E110: каменные, кирпичные | F110: 2 | G110: 3 | H110: 869.2 | I110: 766.3 | J110: 501.9 | K110: 52 | L110: 1014897 | M110: 2016
A111: 93 | B111: Город Магнитогорск, Строителей, 44 | C111: 1947 | E111: смешанные | F111: 2 | G111: 2 | H111: 1136.2 | I111: 715.1 | J111: 618 | K111: 34 | L111: 933830 | M111: 2016
A112: 94 | B112: Город Магнитогорск, Уральская, 39 | C112: 1946 | E112: каменные, кирпичные | F112: 2 | G112: 2 | H112: 1053.66 | I112: 519.7 | J112: 478.8 | K112: 28 | L112: 984374 | M112: 2016
A113: 95 | B113: Город Магнитогорск, Уральская, 43 | C113: 1946 | E113: каменные, кирпичные | F113: 2 | G113: 3 | H113: 1539.44 | I113: 771.6 | J113: 712.5 | K113: 39 | L113: 1316105 | M113: 2016
A114: 96 | B114: Город Магнитогорск, Уральская, 43, корпус 1 | C114: 1945 | E114: блочные | F114: 3 | G114: 3 | H114: 1125.9 | I114: 1032 | J114: 980.2 | K114: 54 | L114: 2047631 | M114: 2016
A115: 97 | B115: Город Магнитогорск, Уральская,51 | C115: 1947 | E115: смешанные | F115: 3 | G115: 6 | H115: 4677.95 | I115: 3586.55 | J115: 3126.76 | K115: 96 | L115: 7049985 | M115: 2016
A116: 98 | B116: Город Магнитогорск, Уральская, 58, корпус 1 | C116: 1951 | E116: смешанные | F116: 2 | G116: 2 | H116: 979.8 | I116: 744.8 | J116: 560.4 | K116: 25 | L116: 3018636 | M116: 2016
A117: 99 | B117: Город Магнитогорск, Ушакова, 38 | C117: 1954 | E117: блочные | F117: 2 | G117: 2 | H117: 650.9 | I117: 568.2 | J117: 520.3 | K117: 32 | L117: 870150 | M117: 2015
A118: 100 | B118: Город Магнитогорск, Ушакова, 40 | C118: 1954 | E118: блочные | F118: 2 | G118: 2 | H118: 679.3 | I118: 619.1 | J118: 508.5 | K118: 17 | L118: 810650 | M118: 2016
A119: 101 | B119: Город Магнитогорск, Ушакова, 42 | C119: 1954 | E119: блочные | F119: 2 | G119: 2 | H119: 792.3 | I119: 708.9 | J119: 471.3 | K119: 28 | L119: 810650 | M119: 2016
A120: 102 | B120: Город Магнитогорск, Фрунзе, 15 | C120: 1938 | E120: каменные, кирпичные | F120: 5 | G120: 4 | H120: 2695.84 | I120: 2359.14 | J120: 1636.57 | K120: 128 | L120: 1619163 | M120: 2016
A121: 103 | B121: Город Магнитогорск, Фрунзе, 3 | C121: 1937 | E121: каменные, кирпичные | F121: 5 | G121: 3 | H121: 2362.4 | I121: 2114.1 | J121: 1303.56 | K121: 93 | L121: 2245684 | M121: 2015
A122: 104 | B122: Город Магнитогорск, Цементная, 12 | C122: 1948 | E122: деревянный | F122: 2 | G122: 2 | H122: 431.2 | I122: 391.1 | J122: 342.2 | K122: 26 | L122: 466550 | M122: 2016
A123: 105 | B123: Город Магнитогорск, Цементная, 21 | C123: 1959 | E123: смешанные | F123: 2 | G123: 3 | H123: 959 | I123: 855.5 | J123: 855.5 | K123: 46 | L123: 1251610 | M123: 2016
A124: 106 | B124: Город Магнитогорск, Чайковского, 33 | C124: 1932 | E124: каменные, кирпичные | F124: 3 | G124: 7 | H124: 1951 | I124: 1632 | J124: 1353.1 | K124: 84 | L124: 2560296 | M124: 2016
A125: 107 | B125: Город Магнитогорск, Чайковского, 35 | C125: 1933 | E125: каменные, кирпичные | F125: 3 | G125: 7 | H125: 1903.5 | I125: 1613.8 | J125: 1305.6 | K125: 76 | L125: 1730683 | M125: 2016
A126: 108 | B126: Город Магнитогорск, Чайковского, 37 | C126: 1933 | E126: каменные, кирпичные | F126: 3 | G126: 7 | H126: 1995.2 | I126: 1652.3 | J126: 1417 | K126: 83 | L126: 1730683 | M126: 2016
A127: 109 | B127: Город Магнитогорск, Чайковского, 39 | C127: 1933 | E127: каменные, кирпичные | F127: 3 | G127: 7 | H127: 1989.6 | I127: 1650.6 | J127: 1378.2 | K127: 93 | L127: 1730683 | M127: 2016
A128: Итого по Магнитогорскому городскому округу | H128: =SUM(H72:H127) -> 138480.57 | I128: 101903.63 | J128: 82016.09 | K128: 3938 | L128: =SUM(L72:L127) -> 109455613
A129: Миасский городской округ
A130: 110 | B130: Город Миасс, проспект Автозаводцев, 12 | C130: 1947 | E130: блочные | F130: 3 | G130: 3 | H130: 1591.6 | I130: 1419.6 | J130: 1010.8 | K130: 44 | L130: 1336075 | M130: 2015
A131: 111 | B131: Город Миасс, проспект Автозаводцев, 13 | C131: 1953 | E131: кирпичные | F131: 3 | G131: 3 | H131: 1936.3 | I131: 1786.9 | J131: 1506.8 | K131: 51 | L131: 3129128 | M131: 2016
A132: 112 | B132: Город Миасс, проспект Автозаводцев, 15 | C132: 1953 | E132: кирпичные | F132: 3 | G132: 3 | H132: 1818.1 | I132: 1578.7 | J132: 1079.6 | K132: 44 | L132: 2619156 | M132: 2016
A133: 113 | B133: Город Миасс, проспект Автозаводцев, 18 | C133: 1950 | E133: кирпичные | F133: 4 | G133: 5 | H133: 3720.1 | I133: 3435.2 | J133: 3340.7 | K133: 69 | L133: 3116988 | M133: 2015
A134: 114 | B134: Город Миасс, проспект Автозаводцев, 20 | C134: 1951 | E134: кирпичные | F134: 4 | G134: 5 | H134: 3745 | I134: 2382.6 | J134: 2382.6 | K134: 92 | L134: 3138522 | M134: 2016
A135: 115 | B135: Город Миасс, проспект Автозаводцев, 22 | C135: 1952 | E135: кирпичные | F135: 3 | G135: 4 | H135: 3578.1 | I135: 1683.3 | J135: 933.8 | K135: 63 | L135: 2830617 | M135: 2016
A136: 116 | B136: Город Миасс, проспект Автозаводцев, 25 | C136: 1954 | E136: кирпичные | F136: 3 | G136: 2 | H136: 1363.1 | I136: 1246.4 | J136: 713 | K136: 19 | L136: 1227029 | M136: 2016
A137: 117 | B137: Город Миасс, проспект Автозаводцев, 27 | C137: 1954 | E137: кирпичные | F137: 3 | G137: 3 | H137: 1889.3 | I137: 1706.7 | J137: 1095.7 | K137: 32 | L137: 1426859 | M137: 2015 | N137: 2015
A138: 118 | B138: Город Миасс, проспект Автозаводцев, 35 | C138: 1956 | E138: кирпичные | F138: 3 | G138: 3 | H138: 1686 | I138: 1520.1 | J138: 1118.8 | K138: 57 | L138: 1528047 | M138: 2015
A139: 119 | B139: Город Миасс, Готвальда, 2 | C139: 1961 | E139: кирпичные | F139: 3 | G139: 3 | H139: 1859.2 | I139: 1521.4 | J139: 1514 | K139: 78 | L139: 511280 | M139: 2015
A140: 120 | B140: Город Миасс, Готвальда, 14 | C140: 1962 | E140: кирпичные | F140: 2 | G140: 1 | H140: 975.5 | I140: 660.19 | J140: 660.19 | K140: 47 | L140: 784973 | M140: 2015
A141: 121 | B141: Город Миасс, Готвальда, 40 | C141: 1962 | E141: кирпичные | F141: 4 | G141: 3 | H141: 2586.6 | I141: 1906.5 | J141: 1777.5 | K141: 90 | L141: 1070034 | M141: 2015
A142: 122 | B142: Город Миасс, 60 лет Октября, 24 | C142: 1962 | E142: кирпичные | F142: 2 | G142: 2 | H142: 1118.6 | I142: 746.1 | J142: 632.9 | K142: 53 | L142: 198826 | M142: 2015
A143: 123 | B143: Город Миасс, 8 Июля, 31 | C143: 1963 | E143: кирпичные | F143: 4 | G143: 3 | H143: 2635.9 | I143: 2016.8 | J143: 1974.6 | K143: 83 | L143: 468498 | M143: ГВС-2015; фасад-2016
A144: Итого по Миасскому городскому округу | H144: =SUM(H130:H143) -> 30503.4 | I144: 23610.49 | J144: 19740.99 | K144: 822 | L144: =SUM(L130:L143) -> 23386032
A145: Озерский городской округ
A146: 124 | B146: Город Озерск, проспект Ленина, 28 | C146: 1947 | E146: кирпичные | F146: 2 | G146: 3 | H146: 1000.22 | I146: 836.4 | J146: 836.4 | K146: 32 | L146: 228628 | M146: 2016
A147: 125 | B147: Город Озерск, проспект Ленина, 64 | C147: 1950 | E147: кирпичные | F147: 3 | G147: 7 | H147: 4064.9 | I147: 3600 | J147: 3600 | K147: 116 | L147: 2340165 | M147: 2016
A148: 126 | B148: Город Озерск, проспект Ленина, 70 | C148: 1949 | E148: кирпичные | F148: 2 | G148: 2 | H148: 768.4 | I148: 693.04 | J148: 693.04 | K148: 31 | L148: 1845900 | M148: 2016
A149: 127 | B149: Город Озерск, Южная, 2 | C149: 1949 | E149: кирпичные | F149: 2 | G149: 2 | H149: 769.5 | I149: 690.11 | J149: 690.11 | K149: 23 | L149: 995100 | M149: 2016
A150: 128 | B150: Город Озерск, проспект Победы, 30 | C150: 1950 | E150: кирпичные | F150: 3 | G150: 2 | H150: 1231.63 | I150: 1114.63 | J150: 979.13 | K150: 30 | L150: 990450 | M150: 2016
A151: 129 | B151: Город Озерск, проспект Победы, 32 | C151: 1951 | E151: кирпичные | F151: 3 | G151: 2 | H151: 1211.34 | I151: 1055.9 | J151: 1055.9 | K151: 42 | L151: 937532 | M151: 2016
A152: 130 | B152: Город Озерск, проспект Победы, 46 | C152: 1951 | E152: кирпичные | F152: 3 | G152: 3 | H152: 1429.57 | I152: 1305.1 | J152: 1305.1 | K152: 45 | L152: 3232662 | M152: 2016
A153: 131 | B153: Город Озерск, проспект Победы, 47 | C153: 1951 | E153: кирпичные | F153: 3 | G153: 6 | H153: 3560.48 | I153: 3128.69 | J153: 3128.69 | K153: 107 | L153: 6232542 | M153: 2016
A154: 132 | B154: Город Озерск, проспект Победы, 50 | C154: 1952 | E154: кирпичные | F154: 4 | G154: 4 | H154: 3281 | I154: 2942.5 | J154: 2942.5 | K154: 147 | L154: 1861501 | M154: 2016
A155: 133 | B155: Город Озерск, Маяковского, 3 | C155: 1950 | E155: кирпичные | F155: 2 | G155: 2 | H155: 775.8 | I155: 686.6 | J155: 686.6 | K155: 36 | L155: 1289700 | M155: 2016
A156: 134 | B156: Город Озерск, Менделеева, 6 | C156: 1952 | E156: кирпичные | F156: 3 | G156: 2 | H156: 1536.82 | I156: 1375.96 | J156: 1375.96 | K156: 66 | L156: 2673900 | M156: 2016
A157: 135 | B157: поселок Новогорный, Ленина, 13 | C157: 1954 | E157: кирпичные | F157: 3 | G157: 2 | H157: 1100.4 | I157: 931.6 | J157: 628.4 | K157: 29 | L157: 460414 | M157: 2016
A158: 136 | B158: Город Озерск, Студенческая, 5 | C158: 1952 | E158: кирпичные | F158: 3 | G158: 2 | H158: 1527.79 | I158: 1376.02 | J158: 1376.02 | K158: 57 | L158: 942805 | M158: 2016
A159: 137 | B159: Город Озерск, Свердлова, 28 | C159: 1951 | E159: кирпичные | F159: 2 | G159: 2 | H159: 1574.59 | I159: 937.59 | J159: 937.59 | K159: 36 | L159: 1144687 | M159: 2016
A160: Итого по Озерскому городскому округу | H160: =SUM(H146:H159) -> 23832.44 | I160: 20674.14 | J160: 20235.44 | K160: 797 | L160: =SUM(L146:L159) -> 25175986
A161: Снежинский городской округ
A162: 138 | B162: Поселок Сокол, Бажова, 2 | C162: 1954 | E162: кирпичные | F162: 2 | G162: 2 | H162: 562.7 | I162: 452.5 | J162: 452.5 | K162: 21 | L162: 937275 | M162: 2016
A163: 139 | B163: Поселок Сокол, Бажова, 4 | C163: 1951 | E163: кирпичные | F163: 2 | G163: 2 | H163: 606.13 | I163: 480.23 | J163: 480.23 | K163: 20 | L163: 1109571 | M163: 2016
A164: 140 | B164: Поселок Сокол, Бажова, 7 | C164: 1954 | E164: кирпичные | F164: 2 | G164: 1 | H164: 800.6 | I164: 617.1 | J164: 617.1 | K164: 14 | L164: 1755288 | M164: ХВС-2015; ЭЭ, ВО, крыша, фундамент-2016
A165: 141 | B165: Поселок Сокол, Кирова, 5 | C165: 1949 | E165: кирпичные | F165: 3 | G165: 2 | H165: 1514.5 | I165: 1203.8 | J165: 1203.8 | K165: 45 | L165: 1784777 | M165: ХВС-2015; ЭЭ, ВО, фасад, фундамент-2016
A166: 142 | B166: Поселок Сокол, Кирова, 7 | C166: 1948 | E166: кирпичные | F166: 3 | G166: 2 | H166: 1472.7 | I166: 1201.1 | J166: 1201.1 | K166: 53 | L166: 1718265 | M166: ХВС-2015; ЭЭ, ВО, фасад, фундамент-2016
A167: 143 | B167: Поселок Ближний Береговой, Центральная, 1 | C167: 1956 | E167: деревянный | F167: 2 | G167: 1 | H167: 501.2 | I167: 403.5 | J167: 169.6 | K167: 35 | L167: 1667762 | M167: 2016
A168: 144 | B168: Поселок Ближний Береговой, Центральная, 5 | C168: 1950 | E168: кирпичные | F168: 2 | G168: 1 | H168: 750.4 | I168: 617.2 | J168: 617.2 | K168: 33 | L168: 1629387 | M168: 2016
A169: 145 | B169: Город Снежинск, Чапаева, 6 | C169: 1957 | E169: деревянный | F169: 2 | G169: 1 | H169: 612.03 | I169: 514 | J169: 438.2 | K169: 29 | L169: 391262 | M169: 2016
A170: 146 | B170: Город Снежинск, Чапаева, 8 | C170: 1957 | E170: деревянный | F170: 2 | G170: 1 | H170: 620.13 | I170: 522.1 | J170: 181.5 | K170: 28 | L170: 391262 | M170: 2016
A171: 147 | B171: Город Снежинск, Чапаева, 10 | C171: 1957 | E171: деревянный | F171: 2 | G171: 1 | H171: 612.13 | I171: 514.1 | J171: 273.7 | K171: 24 | L171: 2482126 | M171: 2016
A172: Итого по Снежинскому городскому округу | H172: =SUM(H162:H171) -> 8052.52 | I172: 6525.63 | J172: 5634.93 | K172: 302 | L172: =SUM(L162:L171) -> 13866975
A173: Троицкий городской округ
A174: 148 | B174: Город Троицк, проспект Строителей, 17 | C174: 1959 | E174: блочные | F174: 2 | G174: 3 | H174: 2036.7 | I174: 1428.3 | J174: 1428.3 | K174: 49 | L174: 2407310 | M174: 2016
A175: 149 | B175: Город Троицк, Автодромная, 3 | C175: 1986 | E175: каменные, кирпичные | F175: 2 | G175: 3 | H175: 1352.2 | I175: 1186.6 | J175: 682.2 | K175: 76 | L175: 1607357 | M175: 2015
A176: 150 | B176: Город Троицк, имени П.Г.Ильина, 56 | C176: 1960 | E176: блочные | F176: 1 | G176: 2 | H176: 585.6 | I176: 533.9 | J176: 533.9 | K176: 16 | L176: 1548053 | M176: 2016
A177: 151 | B177: Город Троицк, Кирова, 37 | C177: 1962 | E177: кирпичные | F177: 4 | G177: 3 | H177: 2369.9 | I177: 2017.8 | J177: 1406.3 | K177: 62 | L177: 618256 | M177: 2016
A178: 152 | B178: Город Троицк, ул. Пионерская, 59 | C178: 1955 | E178: кирпичные | F178: 2 | G178: 1 | H178: 444.7 | I178: 409.8 | J178: 280.4 | K178: 13 | L178: 480689 | M178: 2015
A179: 153 | B179: Город Троицк, ул. Пионерская, 61 | C179: 1957 | E179: кирпичные | F179: 2 | G179: 1 | H179: 444.9 | I179: 409.7 | J179: 276 | K179: 15 | L179: 469869 | M179: 2015
A180: Итого по Троицкому городскому округу | H180: =SUM(H174:H179) -> 7234 | I180: 5986.1 | J180: 4607.1 | K180: 231 | L180: =SUM(L174:L179) -> 7131534
A181: Усть-Катавский городской округ
A182: 161 | B182: Город Усть-Катав, Ленина, 42 | C182: 1978 | E182: кирпичные | F182: 5 | G182: 2 | H182: 4136.81 | I182: 3082.53 | J182: 1817.49 | K182: 172 | L182: 3341989 | M182: 2016
A183: 162 | B183: Город Усть-Катав, Паранино, 29 | C183: 1979 | E183: смешанные | F183: 2 | G183: 1 | H183: 442.6 | I183: 371.2 | J183: 371.2 | K183: 16 | L183: 327228 | M183: 2015
A184: Итого по Усть-Катавскому городскому округу | H184: =H182+H183 -> 4579.41 | I184: 3453.73 | J184: 2188.69 | K184: 188 | L184: =L182+L183 -> 3669217
A185: Чебаркульский городской округ
A186: 163 | B186: Город Чебаркуль, Ленина, 11 | C186: 1952 | E186: блочные | F186: 3 | G186: 2 | H186: 824.5 | I186: 745.5 | J186: 680.8 | K186: 25 | L186: 1435229 | M186: 2015
A187: 164 | B187: Город Чебаркуль, Ленина, 32 | C187: 1955 | E187: блочные | F187: 4 | G187: 3 | H187: 2866 | I187: 2636.4 | J187: 1916.3 | K187: 49 | L187: 1658272 | M187: 2015
A188: 165 | B188: Город Чебаркуль, Ленина, 34 | C188: 1955 | E188: блочные | F188: 4 | G188: 3 | H188: 2797.6 | I188: 2568.4 | J188: 1957.1 | K188: 54 | L188: 1686852 | M188: 2015
A189: 166 | B189: Город Чебаркуль, Ленина, 7 | C189: 1952 | E189: блочные | F189: 3 | G189: 2 | H189: 1031 | I189: 937.8 | J189: 632 | K189: 19 | L189: 753631 | M189: 2015
A190: 167 | B190: Город Чебаркуль, Ленина, 9 | C190: 1953 | E190: блочные | F190: 3 | G190: 2 | H190: 974.5 | I190: 934.3 | J190: 776.3 | K190: 20 | L190: 1800581 | M190: 2015
A191: Итого по Чебаркульскому городскому округу | H191: =SUM(H186:H190) -> 8493.6 | I191: 7822.4 | J191: 5962.5 | K191: 167 | L191: =SUM(L186:L190) -> 7334565
A192: Челябинский городской округ
A193: 168 | B193: Город Челябинск, переулок Руставели, 11 | C193: 1952 | E193: каменные, кирпичные | F193: 4 | G193: 3 | H193: 3565.8 | I193: 2531.7 | J193: 2284.6 | K193: 120 | L193: 3257345 | M193: 2016
A194: 169 | B194: Город Челябинск, переулок Руставели, 5 | C194: 1942 | E194: каменные, кирпичные | F194: 4 | G194: 3 | H194: 3757.5 | I194: 3286.6 | J194: 2396.2 | K194: 206 | L194: 1476797 | M194: 2016
A195: 170 | B195: Город Челябинск, площадь Революции, 1 | C195: 1957 | E195: каменные, кирпичные | F195: 8 | G195: 4 | H195: 10174.7 | I195: 8512.3 | J195: 7371.6 | K195: 168 | L195: 2697100 | M195: 2016
A196: 171 | B196: Город Челябинск, поселок Мясокомбинат, 10 | C196: 1957 | E196: каменные, кирпичные | F196: 3 | G196: 2 | H196: 1017.6 | I196: 947.2 | J196: 947.2 | K196: 55 | L196: 320710 | M196: 2016
A197: 172 | B197: Город Челябинск, поселок Мясокомбинат, 11 | C197: 1957 | E197: каменные, кирпичные | F197: 3 | G197: 2 | H197: 1023.1 | I197: 952.7 | J197: 660.2 | K197: 28 | L197: 3163 | M197: 2016
A198: 173 | B198: Город Челябинск, поселок Мясокомбинат, 14 | C198: 1946 | E198: каменные, кирпичные | F198: 2 | G198: 1 | H198: 522.5 | I198: 462.4 | J198: 383.7 | K198: 35 | L198: 183179 | M198: 2016
A199: 174 | B199: Город Челябинск, поселок Мясокомбинат, 5 | C199: 1953 | E199: кирпичные | F199: 2 | G199: 2 | H199: 391.8 | I199: 347.8 | J199: 241.3 | K199: 19 | L199: 202754 | M199: 2016
A200: 175 | B200: Город Челябинск, проспект Ленина, 16 | C200: 1933 | E200: каменные, кирпичные | F200: 4 | G200: 6 | H200: 6092.9 | I200: 3707.3 | J200: 2855.4 | K200: 101 | L200: 2207993 | M200: 2016
A201: 176 | B201: Город Челябинск, проспект Ленина, 24 | C201: 1933 | E201: каменные, кирпичные | F201: 5 | G201: 10 | H201: 11177.8 | I201: 10364.7 | J201: 6562.5 | K201: 189 | L201: 3918816 | M201: 2016
A202: 177 | B202: Город Челябинск, проспект Ленина, 45 | C202: 1935 | E202: каменные, кирпичные | F202: 5 | G202: 9 | H202: 7948.7 | I202: 6433 | J202: 4768.7 | K202: 160 | L202: 2368155 | M202: 2016
A203: 178 | B203: Город Челябинск, проспект Ленина, 47 | C203: 1951 | E203: каменные, кирпичные | F203: 5 | G203: 2 | H203: 2023.2 | I203: 1809.7 | J203: 1049.7 | K203: 42 | L203: 668321 | M203: 2016
... 324 more rows

Sheet перечень
E1: ПРИЛОЖЕНИЕ 3 к краткосрочному плану реализации региональной программы капитального ремонта общего имущества в многоквартирных домах Челябинской области на 2024 - 2026 годы (в редакции постановления Правительства Челябинской области от ___________2024 г. №______)
A3: Перечень многоквартирных домов, капитальный ремонт которых планируется осуществить в рамках II этапа Плана за счет средств обязательных взносов собственников помещений в многоквартирных домах
A4: № п/п | B4: Адрес многоквартирного дома* | C4: Год | E4: Материал стен | F4: Количество этажей | G4: Количество подъездов | H4: Общая площадь многоквартирного дома, всего | I4: Площадь помещений многоквартирного дома | K4: Количество жителей, зарегистрированных в многоквартирном доме | L4: Стоимость капитального ремонта (за счет обязательных взносов собственников) | M4: Плановая дата завершения работ
C5: ввода в эксплуатацию | D5: завершения последнего капитального ремонта | I5: всего | J5: в том числе жилых помещений, находящихся в собственности граждан
H7: кв. метров | I7: кв. метров | J7: кв. метров | K7: человек | L7: рублей | R7: 2 | S7: 4 | T7: 5 | U7: 6 | V7: 7 | W7: 8
A8: 1 | B8: 2 | C8: 3 | D8: 4 | E8: 5 | F8: 6 | G8: 7 | H8: 8 | I8: 9 | J8: 10 | K8: 11 | L8: 12 | M8: 13
A9: Верхнеуфалейский городской округ
A10: 1. | B10: г. Верхний Уфалей, ул. Карла Маркса, д. 125 | C10: 1958 | E10: шлакоблочные | F10: 2 | G10: 2 | H10: 687.5 | I10: 628.2 | K10: 25 | L10: 2201471.16 | M10: 2024-2025
A11: 2. | B11: г. Верхний Уфалей, ул. Ленина, д. 1 | C11: 1959 | E11: шлакоблочные | F11: 2 | G11: 2 | H11: 702.31 | I11: 612.6 | K11: 27 | L11: 146532.94 | M11: 2024-2025
A12: 3. | B12: г. Верхний Уфалей, ул. Ленина, д. 3 | C12: 1959 | E12: шлакоблочные | F12: 2 | G12: 2 | H12: 722 | I12: 646.9 | K12: 22 | L12: 153067.37 | M12: 2024-2025
A13: 4. | B13: г. Верхний Уфалей, ул. Маяковского, д. 14 | C13: 1959 | E13: шлакоблочные | F13: 3 | G13: 4 | H13: 2096.2 | I13: 1572.6 | K13: 68 | L13: 2455646.28 | M13: 2024-2025
A14: 5. | B14: г. Верхний Уфалей, ул. Некрасова, д. 8 | C14: 1959 | E14: кирпичные | F14: 2 | G14: 3 | H14: 969.5 | I14: 894.8 | K14: 38 | L14: 109354.46 | M14: 2024-2025
A15: 6. | B15: г. Верхний Уфалей, ул. Победы, д. 34 | C15: 1959 | E15: шлакоблочные | F15: 3 | G15: 2 | H15: 950.2 | I15: 805 | K15: 20 | L15: 116427.81 | M15: 2024-2025
A16: 7. | B16: г. Верхний Уфалей, ул. Худякова, д. 5 | C16: 1961 | E16: шлакоблочные | F16: 2 | G16: 2 | H16: 684.6 | I16: 638.7 | K16: 30 | L16: 5790080.8 | M16: 2024-2025
A17: 8. | B17: г. Верхний Уфалей, ул. Худякова, д. 7 | C17: 1960 | E17: шлакоблочные | F17: 2 | G17: 2 | H17: 694.7 | I17: 640.7 | K17: 28 | L17: 5856824.77 | M17: 2024-2025
A18: 9. | B18: г. Верхний Уфалей, ул. Худякова, д. 9 | C18: 1961 | E18: шлакоблочные | F18: 2 | G18: 2 | H18: 696.6 | I18: 645.8 | K18: 31 | L18: 1052186.42 | M18: 2024-2025
A19: Итого по Верхнеуфалейскому городскому округу | H19: =SUM(H10:H18) -> 8203.61 | I19: =SUM(I10:I18) -> 7085.3 | K19: =SUM(K10:K18) -> 289 | L19: =SUM(L10:L18) -> 17881592.01
A20: Златоустовский городской округ
A21: 10. | B21: г. Златоуст, пр-кт Мира, д. 4 | C21: 1951 | E21: кирпичные | F21: 3 | G21: 3 | H21: 1280.5 | I21: 1212.5 | K21: 49 | L21: 899767.3 | M21: 2024-2025
A22: 11. | B22: г. Златоуст, ул. им. В.И. Ленина, д. 22 | C22: 1942 | E22: кирпичные | F22: 5 | G22: 6 | H22: 4868.49 | I22: 4868.49 | K22: 126 | L22: 37756444.19 | M22: 2024-2025
A23: 12. | B23: г. Златоуст, ул. им. Карла Маркса, д. 11 | C23: 1952 | E23: кирпичные | F23: 5 | G23: 8 | H23: 7812.3 | I23: 7082.4 | K23: 205 | L23: 77967763.73 | M23: 2024-2025
A24: 13. | B24: г. Златоуст, ул. им. Карла Маркса, д. 37 | C24: 1962 | E24: блочные | F24: 5 | G24: 3 | H24: 2765.2 | I24: 2227.2 | K24: 83 | L24: 8691224.22 | M24: 2024-2025
A25: 14. | B25: г. Златоуст, ул. им. Карла Маркса, д. 8 | C25: 1954 | E25: кирпичные | F25: 4 | G25: 4 | H25: 3221.2 | I25: 3221.2 | K25: 110 | L25: 62354300.32 | M25: 2024-2025
A26: Итого по Златоустовскому городскому округу | H26: =SUM(H21:H25) -> 19947.69 | I26: 18611.79 | K26: 573 | L26: 187669499.8
A27: Карабашский городской округ
A28: 15. | B28: г. Карабаш, ул. Ключевая, д. 14 | C28: 2003 | E28: панельные | F28: 5 | G28: 6 | H28: 5910.3 | I28: 5145.3 | K28: 214 | L28: 4986166.41 | M28: 2024-2025
A29: Итого по Карабашскому городскому округу | H29: =SUM(H28:H28) -> 5910.3 | I29: =SUM(I28:I28) -> 5145.3 | K29: =SUM(K28:K28) -> 214 | L29: =SUM(L28:L28) -> 4986166.41
A30: Копейский городской округ
A31: 16. | B31: г. Копейск, п. Советов, д. 3 | C31: 1950 | E31: шлакоблочные | F31: 2 | G31: 3 | H31: 1056.4 | I31: 813.89 | K31: 50 | L31: 11671945.34 | M31: 2024-2025
A32: 17. | B32: г. Копейск, ул. Бажова, д. 11 | C32: 1953 | E32: деревянные | F32: 3 | G32: 3 | H32: 2700.3 | I32: 1905.1 | K32: 62 | L32: 25621204.09 | M32: 2024-2025
A33: 18. | B33: г. Копейск, ул. Бажова, д. 12 | C33: 1953 | E33: кирпичные | F33: 3 | G33: 3 | H33: 1861.6 | I33: 1786.1 | K33: 61 | L33: 18365650.23 | M33: 2024-2025
A34: 19. | B34: г. Копейск, ул. Калинина, д. 10 | C34: 1952 | E34: шлакоблочные | F34: 2 | G34: 1 | H34: 375.4 | I34: 367.9 | K34: 25 | L34: 5200504.78 | M34: 2024-2025
A35: 20. | B35: г. Копейск, ул. Карла Маркса, д. 20 | C35: 1956 | E35: кирпичные | F35: 3 | G35: 3 | H35: 2357 | I35: 1847.6 | K35: 49 | L35: 24113023.92 | M35: 2024-2025
A36: 21. | B36: г. Копейск, ул. Коммунистическая, д. 4 | C36: 1951 | E36: шлакоблочные | F36: 2 | G36: 1 | H36: 462.6 | I36: 432.5 | K36: 16 | L36: 9424085.03 | M36: 2024-2025
A37: 22. | B37: г. Копейск, ул. Коммунистическая, д. 7 | C37: 1952 | E37: шлакоблочные | F37: 2 | G37: 3 | H37: 927 | I37: 870.7 | K37: 38 | L37: 16997158.89 | M37: 2024-2025
A38: 23. | B38: г. Копейск, ул. Крымская, д. 7 | C38: 1956 | E38: кирпичные | F38: 2 | G38: 3 | H38: 1460.6 | I38: 939.7 | K38: 38 | L38: 18878395.25 | M38: 2024-2025
A39: 24. | B39: г. Копейск, ул. Майская, д. 3 | C39: 1953 | E39: шлакоблочные | F39: 2 | G39: 2 | H39: 444.4 | I39: 401.4 | K39: 14 | L39: 7726745.42 | M39: 2024-2025
A40: 25. | B40: г. Копейск, ул. Молодой Гвардии, д. 20 | C40: 1952 | E40: шлакоблочные | F40: 2 | G40: 2 | H40: 421.4 | I40: 378.6 | K40: 19 | L40: 7193477.54 | M40: 2024-2025
A41: Итого по Копейскому городскому округу | H41: =SUM(H31:H40) -> 12066.7 | I41: =SUM(I31:I40) -> 9743.49 | K41: =SUM(K31:K40) -> 372 | L41: =SUM(L31:L40) -> 145192190.5
A42: Кыштымский городской округ
A43: 26. | B43: г. Кыштым, ул. Образцова, д. 1 | C43: 1956 | E43: кирпичные | F43: 2 | G43: 2 | H43: 748 | I43: 687.9 | K43: 35 | L43: 879910.19 | M43: 2024-2025
A44: 27. | B44: г. Кыштым, ул. Образцова, д. 2 | C44: 1957 | E44: шлакоблочные | F44: 2 | G44: 2 | H44: 1014.5 | I44: 677.4 | K44: 30 | L44: 1209879.81 | M44: 2024-2025
A45: 28. | B45: г. Кыштым, ул. Победы, д. 6 | C45: 1932 | E45: кирпичные | F45: 3 | G45: 4 | H45: 2206.57 | I45: 1597.09 | K45: 39 | L45: 8119889.38 | M45: 2024-2025
A46: 29. | B46: г. Кыштым, ул. Челюскинцев, д. 61 | C46: 1977 | E46: панельные | F46: 5 | G46: 6 | H46: 5593 | I46: 4386.4 | K46: 192 | L46: 13996974.33 | M46: 2024-2025
A47: Итого по Кыштымскому городскому округу | H47: =SUM(H43:H46) -> 9562.07 | I47: =SUM(I43:I46) -> 7348.79 | K47: =SUM(K43:K46) -> 296 | L47: =SUM(L43:L46) -> 24206653.71
A48: Магнитогорский городской округ
A49: 30. | B49: г. Магнитогорск, пер. Ржевского, д. 9 | C49: 1936 | E49: шлакоблочные | F49: 5 | G49: 5 | H49: 3773.13 | I49: 3367.67 | K49: 212 | L49: 582661.95 | M49: 2024-2025
A50: 31. | B50: г. Магнитогорск, пр-кт Карла Маркса, д. 164 | C50: 1973 | E50: крупноблочные | F50: 10 | G50: 10 | H50: 36246.3 | I50: 36246.3 | K50: 1329 | L50: 214146808.2 | M50: 2024-2025
A51: 32. | B51: г. Магнитогорск, пр-кт Карла Маркса, д. 55, корп. 1 | C51: 1958 | E51: смешанные | F51: 5 | G51: 2 | H51: 2625.04 | I51: 1691.64 | K51: 51 | L51: 468669.39 | M51: 2024-2025
A52: 33. | B52: г. Магнитогорск, пр-кт Ленина, д. 15 | C52: 1946 | E52: кирпичные | F52: 4 | G52: 3 | H52: 4077 | I52: 3189.1 | K52: 87 | L52: 327857.35 | M52: 2024-2025
A53: 34. | B53: г. Магнитогорск, пр-кт Ленина, д. 17, корп. 1 | C53: 1948 | F53: 3 | G53: 3 | H53: 2448.8 | I53: 2448.8 | K53: 99 | L53: 6192204.99 | M53: 2024-2025
A54: 35. | B54: г. Магнитогорск, пр-кт Ленина, д. 21, корп. 3 | C54: 1944 | E54: кирпичные | F54: 3 | G54: 3 | H54: 3041.5 | I54: 2585.9 | K54: 104 | L54: 10132247.14 | M54: 2024-2025
A55: 36. | B55: г. Магнитогорск, пр-кт Ленина, д. 25 | C55: 1948 | E55: смешанные | F55: 3 | G55: 4 | H55: 1337.3 | I55: 1062.5 | K55: 24 | L55: 109787.46 | M55: 2024-2025
A56: 37. | B56: г. Магнитогорск, пр-кт Ленина, д. 35 | C56: 1949 | E56: смешанные | F56: 4 | G56: 4 | H56: 4855.2 | I56: 2784.4 | K56: 84 | L56: 11454563.3 | M56: 2024-2025
A57: 38. | B57: г. Магнитогорск, пр-кт Ленина, д. 43, корп. 1 | C57: 1952 | E57: смешанные | F57: 5 | G57: 3 | H57: 3287.8 | I57: 2110.9 | K57: 32 | L57: 950530.24 | M57: 2024-2025
A58: 39. | B58: г. Магнитогорск, пр-кт Ленина, д. 6 | C58: 1959 | E58: смешанные | F58: 5 | G58: 3 | H58: 3788.44 | I58: 2487.8 | K58: 122 | L58: 6812843.61 | M58: 2024-2025
A59: 40. | B59: г. Магнитогорск, пр-кт Пушкина, д. 26, корп. 1 | C59: 1957 | E59: шлакоблочные | F59: 6 | G59: 8 | H59: 13520.3 | I59: 10175.59 | K59: 474 | L59: 6091808.35 | M59: 2024-2025
A60: 41. | B60: г. Магнитогорск, ул. Вокзальная, д. 92 | C60: 1958 | E60: шлакоблочные | F60: 2 | G60: 2 | H60: 765.7 | I60: 566.1 | K60: 52 | L60: 537950.95 | M60: 2024-2025
A61: 42. | B61: г. Магнитогорск, ул. Володарского, д. 20 | C61: 1957 | E61: шлакоблочные | F61: 3 | G61: 2 | H61: 1744.8 | I61: 1227.2 | K61: 54 | L61: 643910.99 | M61: 2024-2025
A62: 43. | B62: г. Магнитогорск, ул. Володарского, д. 26 | C62: 1957 | E62: шлакоблочные | F62: 3 | G62: 2 | H62: 1546.8 | I62: 1221.6 | K62: 54 | L62: 647986.37 | M62: 2024-2025
A63: 44. | B63: г. Магнитогорск, ул. Гагарина, д. 10 | C63: 1958 | E63: смешанные | F63: 5 | G63: 6 | H63: 6169.5 | I63: 4758.66 | K63: 106 | L63: 963294.25 | M63: 2024-2025
A64: 45. | B64: г. Магнитогорск, ул. Достоевского, д. 24 | C64: 1955 | E64: шлакоблочные | F64: 2 | G64: 2 | H64: 831.2 | I64: 559.3 | K64: 36 | L64: 509423.25 | M64: 2024-2025
A65: 46. | B65: г. Магнитогорск, ул. Достоевского, д. 26 | C65: 1955 | E65: шлакоблочные | F65: 2 | G65: 1 | H65: 459.6 | I65: 411.2 | K65: 24 | L65: 268975.48 | M65: 2024-2025
A66: 47. | B66: г. Магнитогорск, ул. Достоевского, д. 28, корп. 1 | C66: 1955 | E66: шлакоблочные | F66: 2 | G66: 1 | H66: 689.4 | I66: 411.4 | K66: 24 | L66: 391237.06 | M66: 2024-2025
A67: 48. | B67: г. Магнитогорск, ул. Достоевского, д. 32 | C67: 1954 | E67: шлакоблочные | F67: 2 | G67: 1 | H67: 458.6 | I67: 410.6 | K67: 24 | L67: 268975.48 | M67: 2024-2025
A68: 49. | B68: г. Магнитогорск, ул. Калинина, д. 11 | C68: 1954 | E68: смешанные | F68: 4 | G68: 4 | H68: 5693 | I68: 3781.6 | K68: 97 | L68: 13176293.44 | M68: 2024-2025
A69: 50. | B69: г. Магнитогорск, ул. Кирова, д. 115 | C69: 1944 | E69: шлакоблочные | F69: 2 | G69: 3 | H69: 1418.7 | I69: 1222.8 | K69: 61 | L69: 16511177.48 | M69: 2024-2025
A70: 51. | B70: г. Магнитогорск, ул. Кирова, д. 119 | C70: 1958 | E70: шлакоблочные | F70: 2 | G70: 2 | H70: 433.7 | I70: 402.3 | K70: 38 | L70: 445254.43 | M70: 2024-2025
A71: 52. | B71: г. Магнитогорск, ул. Кирова, д. 121 | C71: 1958 | E71: шлакоблочные | F71: 2 | G71: 2 | H71: 747.7 | I71: 745.2 | K71: 43 | L71: 761642.68 | M71: 2024-2025
A72: 53. | B72: г. Магнитогорск, ул. Комсомольская, д. 11 | C72: 1948 | E72: смешанные | F72: 2 | G72: 2 | H72: 1704 | I72: 897.7 | K72: 24 | L72: 133636.32 | M72: 2024-2025
A73: 54. | B73: г. Магнитогорск, ул. Комсомольская, д. 13 | C73: 1948 | E73: смешанные | F73: 3 | G73: 2 | H73: 1915.8 | I73: 1079 | K73: 36 | L73: 139852.44 | M73: 2024-2025
A74: 55. | B74: г. Магнитогорск, ул. Комсомольская, д. 15 | C74: 1948 | E74: смешанные | F74: 2 | G74: 2 | H74: 1768.9 | I74: 752.1 | K74: 30 | L74: 93234.96 | M74: 2024-2025
A75: 56. | B75: г. Магнитогорск, ул. Комсомольская, д. 17 | C75: 1948 | E75: кирпичные | F75: 3 | G75: 2 | H75: 1884.6 | I75: 816.3 | K75: 21 | L75: 139852.44 | M75: 2024-2025
A76: 57. | B76: г. Магнитогорск, ул. Комсомольская, д. 19 | C76: 1949 | E76: кирпичные | F76: 3 | G76: 4 | H76: 3914.8 | I76: 1552.8 | K76: 37 | L76: 180147.24 | M76: 2024-2025
A77: 58. | B77: г. Магнитогорск, ул. Комсомольская, д. 2 | C77: 1948 | E77: смешанные | F77: 3 | G77: 5 | H77: 3651.9 | I77: 2841.19 | K77: 63 | L77: 1439290.49 | M77: 2024-2025
A78: 59. | B78: г. Магнитогорск, ул. Комсомольская, д. 20 | C78: 1948 | E78: кирпичные | F78: 3 | G78: 2 | H78: 1469.8 | I78: 1111.6 | K78: 23 | L78: 393893.72 | M78: 2024-2025
A79: 60. | B79: г. Магнитогорск, ул. Комсомольская, д. 23 | C79: 1948 | E79: смешанные | F79: 3 | G79: 4 | H79: 3831.1 | I79: 1652.4 | K79: 64 | L79: 180147.24 | M79: 2024-2025
A80: 61. | B80: г. Магнитогорск, ул. Комсомольская, д. 4 | C80: 1947 | E80: смешанные | F80: 3 | G80: 4 | H80: 2681.3 | I80: 2184.2 | K80: 56 | L80: 10170102.77 | M80: 2024-2025
A81: 62. | B81: г. Магнитогорск, ул. Комсомольская, д. 7 | C81: 1948 | E81: смешанные | F81: 3 | G81: 4 | H81: 3726.2 | I81: 1907 | K81: 63 | L81: 180147.24 | M81: 2024-2025
A82: 63. | B82: г. Магнитогорск, ул. Комсомольская, д. 77 | C82: 1955 | E82: шлакоблочные | F82: 3 | G82: 4 | H82: 3412.3 | I82: 2231.2 | K82: 102 | L82: 7058641.14 | M82: 2024-2025
A83: 64. | B83: г. Магнитогорск, ул. Комсомольская, д. 8 | C83: 1947 | E83: смешанные | F83: 3 | G83: 2 | H83: 3565.1 | I83: 1826.9 | K83: 64 | L83: 661543.62 | M83: 2024-2025
A84: 65. | B84: г. Магнитогорск, ул. Комсомольская, д. 9 | C84: 1948 | E84: смешанные | F84: 3 | G84: 2 | H84: 1861.6 | I84: 1063 | K84: 39 | L84: 139852.44 | M84: 2024-2025
A85: 66. | B85: г. Магнитогорск, ул. Корсикова, д. 14 | C85: 1958 | E85: шлакоблочные | F85: 2 | G85: 2 | H85: 471.1 | I85: 426.1 | K85: 32 | L85: 248336.16 | M85: 2024-2025
A86: 67. | B86: г. Магнитогорск, ул. Корсикова, д. 17 | C86: 1957 | E86: шлакоблочные | F86: 2 | G86: 1 | H86: 589.5 | I86: 360.9 | K86: 24 | L86: 503085.97 | M86: 2024-2025
A87: 68. | B87: г. Магнитогорск, ул. Корсикова, д. 17А | C87: 1957 | E87: шлакоблочные | F87: 2 | G87: 2 | H87: 591 | I87: 374.9 | K87: 24 | L87: 378610.87 | M87: 2024-2025
A88: 69. | B88: г. Магнитогорск, ул. Корсикова, д. 19 | C88: 1957 | E88: шлакоблочные | F88: 2 | G88: 1 | H88: 591 | I88: 360.5 | K88: 25 | L88: 337900.02 | M88: 2024-2025
A89: 70. | B89: г. Магнитогорск, ул. Корсикова, д. 20 | C89: 1959 | E89: шлакоблочные | F89: 3 | G89: 1 | H89: 923.9 | I89: 639.3 | K89: 49 | L89: 553667.51 | M89: 2024-2025
A90: 71. | B90: г. Магнитогорск, ул. Корсикова, д. 3 | C90: 1959 | E90: кирпичные | F90: 3 | G90: 2 | H90: 1794.8 | I90: 1202.75 | K90: 52 | L90: 561809.67 | M90: 2024-2025
A91: 72. | B91: г. Магнитогорск, ул. Корсикова, д. 5 | C91: 1959 | E91: шлакоблочные | F91: 3 | G91: 3 | H91: 1718 | I91: 1160.3 | K91: 68 | L91: 553667.51 | M91: 2024-2025
A92: 73. | B92: г. Магнитогорск, ул. Корсикова, д. 9 | C92: 1957 | E92: шлакоблочные | F92: 3 | G92: 2 | H92: 1679.1 | I92: 1208.8 | K92: 72 | L92: 588520 | M92: 2024-2025
A93: 74. | B93: г. Магнитогорск, ул. Куйбышева, д. 11 | C93: 1949 | E93: смешанные | F93: 3 | G93: 2 | H93: 1996.7 | I93: 1171 | K93: 42 | L93: 1937199.66 | M93: 2024-2025
A94: 75. | B94: г. Магнитогорск, ул. Куйбышева, д. 12 | C94: 1950 | E94: смешанные | F94: 3 | G94: 2 | H94: 2071 | I94: 1204.6 | K94: 37 | L94: 139852.44 | M94: 2024-2025
A95: 76. | B95: г. Магнитогорск, ул. Куйбышева, д. 4 | C95: 1949 | E95: смешанные | F95: 2 | G95: 4 | H95: 3175.1 | I95: 1685.1 | K95: 80 | L95: 120098.16 | M95: 2024-2025
A96: 77. | B96: г. Магнитогорск, ул. Ленинградская, д. 12 | C96: 1954 | E96: кирпичные | F96: 5 | G96: 5 | H96: 8507.75 | I96: 5830.5 | K96: 166 | L96: 2759840.23 | M96: 2024-2025
A97: 78. | B97: г. Магнитогорск, ул. Ленинградская, д. 22 | C97: 1955 | E97: смешанные | F97: 5 | G97: 5 | H97: 9444.47 | I97: 5531.3 | K97: 189 | L97: 2391355.09 | M97: 2024-2025
A98: 79. | B98: г. Магнитогорск, ул. Ленинградская, д. 22, корп. 1 | C98: 1955 | E98: смешанные | F98: 4 | G98: 3 | H98: 4217.32 | I98: 2792.5 | K98: 86 | L98: 1862518.81 | M98: 2024-2025
A99: 80. | B99: г. Магнитогорск, ул. Ленинградская, д. 26 | C99: 1948 | E99: смешанные | F99: 2 | G99: 2 | H99: 1425.8 | I99: 778 | K99: 35 | L99: 360294.48 | M99: 2024-2025
A100: 81. | B100: г. Магнитогорск, ул. Лесная, д. 4А | C100: 1952 | E100: кирпичные | F100: 4 | G100: 4 | H100: 3263.9 | I100: 2429.7 | K100: 119 | L100: 708407.29 | M100: 2024-2025
A101: 82. | B101: г. Магнитогорск, ул. Ломоносова, д. 10 | C101: 1949 | E101: кирпичные | F101: 2 | G101: 2 | H101: 1570.3 | I101: 733.6 | K101: 23 | L101: 93234.96 | M101: 2024-2025
A102: 83. | B102: г. Магнитогорск, ул. Ломоносова, д. 12 | C102: 1949 | E102: смешанные | F102: 2 | G102: 2 | H102: 1712.1 | I102: 884.7 | K102: 39 | L102: 93234.96 | M102: 2024-2025
A103: 84. | B103: г. Магнитогорск, ул. Ломоносова, д. 14 | C103: 1948 | E103: кирпичные | F103: 2 | G103: 2 | H103: 1670.7 | I103: 797.6 | K103: 26 | L103: 93234.96 | M103: 2024-2025
A104: 85. | B104: г. Магнитогорск, ул. Ломоносова, д. 16 | C104: 1949 | E104: смешанные | F104: 2 | G104: 2 | H104: 1643.8 | I104: 726.4 | K104: 24 | L104: 93234.96 | M104: 2024-2025
A105: 86. | B105: г. Магнитогорск, ул. Ломоносова, д. 22 | C105: 1948 | E105: смешанные | F105: 2 | G105: 2 | H105: 1645.1 | I105: 809.5 | K105: 25 | L105: 93234.96 | M105: 2024-2025
A106: 87. | B106: г. Магнитогорск, ул. Менделеева, д. 22, корп. 1 | C106: 1945 | F106: 2 | G106: 2 | H106: 579.8 | I106: 495 | K106: 29 | L106: 8702620.14 | M106: 2024-2025
A107: 88. | B107: г. Магнитогорск, ул. Ломоносова, д. 22, корп. 2 | C107: 1949 | E107: кирпичные | F107: 2 | G107: 2 | H107: 1749.8 | I107: 762.8 | K107: 30 | L107: 93234.96 | M107: 2024-2025
A108: 89. | B108: г. Магнитогорск, ул. Ломоносова, д. 26 | C108: 1948 | E108: смешанные | F108: 2 | G108: 2 | H108: 1425.8 | I108: 778 | K108: 35 | L108: 93234.96 | M108: 2024-2025
A109: 90. | B109: г. Магнитогорск, ул. Ломоносова, д. 26, корп. 1 | C109: 1949 | E109: смешанные | F109: 2 | G109: 2 | H109: 1749.1 | I109: 761.1 | K109: 30 | L109: 93234.96 | M109: 2024-2025
A110: 91. | B110: г. Магнитогорск, ул. Ломоносова, д. 26, корп. 2 | C110: 1949 | E110: смешанные | F110: 2 | G110: 2 | H110: 1789.9 | I110: 793.7 | K110: 32 | L110: 93234.96 | M110: 2024-2025
A111: 92. | B111: г. Магнитогорск, ул. Ломоносова, д. 28 | C111: 1949 | E111: смешанные | F111: 3 | G111: 2 | H111: 2046.9 | I111: 1043.5 | K111: 33 | L111: 139852.44 | M111: 2024-2025
A112: 93. | B112: г. Магнитогорск, ул. Ломоносова, д. 5 | C112: 1950 | E112: смешанные | F112: 3 | G112: 3 | H112: 2932.4 | I112: 1723.6 | K112: 46 | L112: 135110.43 | M112: 2024-2025
A113: 94. | B113: г. Магнитогорск, ул. Ломоносова, д. 6 | C113: 1949 | E113: смешанные | F113: 2 | G113: 4 | H113: 3283.6 | I113: 1421.2 | K113: 56 | L113: 120098.16 | M113: 2024-2025
A114: 95. | B114: г. Магнитогорск, ул. Ломоносова, д. 8 | C114: 1949 | E114: смешанные | F114: 2 | G114: 2 | H114: 1531.5 | I114: 796.5 | K114: 30 | L114: 93234.96 | M114: 2024-2025
A115: 96. | B115: г. Магнитогорск, ул. Менделеева, д. 3 | C115: 1949 | E115: кирпичные | F115: 2 | G115: 2 | H115: 963.9 | I115: 694.6 | K115: 39 | L115: 3051795.62 | M115: 2024-2025
A116: 97. | B116: г. Магнитогорск, ул. Менделеева, д. 5/1 | C116: 1950 | E116: смешанные | F116: 2 | G116: 2 | H116: 1175.7 | I116: 817 | K116: 48 | L116: 4330154.62 | M116: 2024-2025
A117: 98. | B117: г. Магнитогорск, ул. Менделеева, д. 9, корп. 1 | C117: 1949 | E117: смешанные | F117: 2 | G117: 2 | H117: 1083.3 | I117: 681 | K117: 29 | L117: 2884310.14 | M117: 2024-2025
A118: 99. | B118: г. Магнитогорск, ул. Николая Шишка, д. 32, корп. 1 | C118: 1949 | E118: кирпичные | F118: 2 | G118: 2 | H118: 1198 | I118: 786.3 | K118: 33 | L118: 2998691.9 | M118: 2024-2025
A119: 100. | B119: г. Магнитогорск, ул. Николая Шишка, д. 9 | C119: 1951 | E119: шлакоблочные | F119: 2 | G119: 2 | H119: 1964.5 | I119: 1362.1 | K119: 121 | L119: 3741569.71 | M119: 2024-2025
A120: 101. | B120: г. Магнитогорск, ул. Октябрьская, д. 2 | C120: 1957 | E120: кирпичные | F120: 6 | G120: 5 | H120: 9562 | I120: 6763.3 | K120: 212 | L120: 4411869.54 | M120: 2024-2025
A121: 102. | B121: г. Магнитогорск, ул. Октябрьская, д. 8 | C121: 1956 | E121: кирпичные | F121: 5 | G121: 5 | H121: 10288.34 | I121: 7562.54 | K121: 232 | L121: 5277825.74 | M121: 2024-2025
A122: 103. | B122: г. Магнитогорск, ул. Разина, д. 7 | C122: 1959 | E122: кирпичные | F122: 3 | G122: 2 | H122: 1394.6 | I122: 1006.5 | K122: 61 | L122: 677982.23 | M122: 2024-2025
A123: 104. | B123: г. Магнитогорск, ул. Советская, д. 35 | C123: 1954 | E123: шлакоблочные | F123: 2 | G123: 3 | H123: 1137.4 | I123: 828.6 | K123: 48 | L123: 1038896.59 | M123: 2024-2025
A124: 105. | B124: г. Магнитогорск, ул. Строителей, д. 21 | C124: 1946 | E124: кирпичные | F124: 3 | G124: 1 | H124: 575.9 | I124: 386.6 | K124: 25 | L124: 3644452.44 | M124: 2024-2025
A125: 106. | B125: г. Магнитогорск, ул. Строителей, д. 23 | C125: 1946 | E125: смешанные | F125: 2 | G125: 2 | H125: 797.1 | I125: 522 | K125: 31 | L125: 5212181.13 | M125: 2024-2025
A126: 107. | B126: г. Магнитогорск, ул. Строителей, д. 25 | C126: 1947 | E126: шлакоблочные | F126: 2 | G126: 1 | H126: 422.5 | I126: 264.3 | K126: 14 | L126: 3288285.68 | M126: 2024-2025
A127: 108. | B127: г. Магнитогорск, ул. Строителей, д. 27 | C127: 1947 | E127: кирпичные | F127: 2 | G127: 2 | H127: 731.1 | I127: 607.8 | K127: 13 | L127: 2731064.37 | M127: 2024-2025
A128: 109. | B128: г. Магнитогорск, ул. Строителей, д. 28 | C128: 1948 | F128: 2 | G128: 1 | H128: 340.5 | I128: 308.2 | K128: 18 | L128: 2066128.64 | M128: 2024-2025
A129: 110. | B129: г. Магнитогорск, ул. Строителей, д. 35, корп. 1 | C129: 1947 | E129: смешанные | F129: 2 | G129: 2 | H129: 1022.7 | I129: 742.9 | K129: 21 | L129: 3441882.59 | M129: 2024-2025
A130: 111. | B130: г. Магнитогорск, ул. Строителей, д. 35/2 | C130: 1949 | E130: смешанные | F130: 2 | G130: 2 | H130: 1074.8 | I130: 687 | K130: 27 | L130: 4045432.92 | M130: 2024-2025
A131: 112. | B131: г. Магнитогорск, ул. Строителей, д. 37 | C131: 1949 | E131: смешанные | F131: 3 | G131: 2 | H131: 1515 | I131: 1170.1 | K131: 56 | L131: 1118776.07 | M131: 2024-2025
A132: 113. | B132: г. Магнитогорск, ул. Строителей, д. 37, корп. 1 | C132: 1950 | E132: смешанные | F132: 3 | G132: 3 | H132: 1057.3 | I132: 630.6 | K132: 19 | L132: 6017730.44 | M132: 2024-2025
A133: 114. | B133: г. Магнитогорск, ул. Строителей, д. 38 | C133: 1947 | E133: кирпичные | F133: 2 | G133: 2 | H133: 1158.3 | I133: 712.6 | K133: 34 | L133: 930826.81 | M133: 2024-2025
A134: 115. | B134: г. Магнитогорск, ул. Строителей, д. 40 | C134: 1947 | E134: смешанные | F134: 2 | G134: 2 | H134: 1021.6 | I134: 812.9 | K134: 37 | L134: 1960526.21 | M134: 2024-2025
A135: 116. | B135: г. Магнитогорск, ул. Строителей, д. 40, корп. 1 | C135: 1946 | E135: смешанные | F135: 2 | G135: 2 | H135: 1196.8 | I135: 849.4 | K135: 34 | L135: 2010984.47 | M135: 2024-2025
A136: 117. | B136: г. Магнитогорск, ул. Строителей, д. 42 | C136: 1947 | E136: смешанные | F136: 2 | G136: 2 | H136: 1076.4 | I136: 832.2 | K136: 30 | L136: 1773630.28 | M136: 2024-2025
A137: 118. | B137: г. Магнитогорск, ул. Строителей, д. 42, корп. 1 | C137: 1946 | E137: смешанные | F137: 2 | G137: 2 | H137: 1053.3 | I137: 781.4 | K137: 37 | L137: 1286722.08 | M137: 2024-2025
A138: 119. | B138: г. Магнитогорск, ул. Строителей, д. 44 | C138: 1948 | E138: кирпичные | F138: 2 | G138: 2 | H138: 1136.2 | I138: 715.1 | K138: 34 | L138: 3475404.71 | M138: 2024-2025
A139: 120. | B139: г. Магнитогорск, ул. Трамвайная, д. 25 | C139: 1941 | E139: кирпичные | F139: 3 | G139: 3 | H139: 1369.5 | I139: 1157.69 | K139: 66 | L139: 1724567.94 | M139: 2024-2025
A140: 121. | B140: г. Магнитогорск, ул. Уральская, д. 25 | C140: 1943 | E140: кирпичные | F140: 3 | G140: 2 | H140: 1177.5 | I140: 928.9 | K140: 49 | L140: 1836278.76 | M140: 2024-2025
A141: 122. | B141: г. Магнитогорск, ул. Уральская, д. 27 | C141: 1944 | E141: кирпичные | F141: 3 | G141: 2 | H141: 1230.4 | I141: 856.4 | K141: 41 | L141: 322549.95 | M141: 2024-2025
A142: 123. | B142: г. Магнитогорск, ул. Уральская, д. 30 | C142: 1943 | E142: кирпичные | F142: 3 | G142: 2 | H142: 1159.4 | I142: 843.7 | K142: 60 | L142: 332036.71 | M142: 2024-2025
A143: 124. | B143: г. Магнитогорск, ул. Уральская, д. 32 | C143: 1943 | E143: кирпичные | F143: 3 | G143: 2 | H143: 1157.6 | I143: 918.8 | K143: 54 | L143: 331459.6 | M143: 2024-2025
A144: 125. | B144: г. Магнитогорск, ул. Уральская, д. 34 | C144: 1941 | E144: кирпичные | F144: 2 | G144: 4 | H144: 2230.2 | I144: 1563.5 | K144: 66 | L144: 1028213.93 | M144: 2024-2025
A145: 126. | B145: г. Магнитогорск, ул. Уральская, д. 36 | C145: 1941 | E145: кирпичные | F145: 4 | G145: 17 | H145: 9694.1 | I145: 8201 | K145: 261 | L145: 39397654.35 | M145: 2024-2025
A146: 127. | B146: г. Магнитогорск, ул. Уральская, д. 38 | C146: 1946 | E146: смешанные | F146: 4 | G146: 2 | H146: 2380.08 | I146: 1731.1 | K146: 112 | L146: 800204.06 | M146: 2024-2025
A147: 128. | B147: г. Магнитогорск, ул. Уральская, д. 40 | C147: 1946 | E147: кирпичные | F147: 3 | G147: 3 | H147: 2758.1 | I147: 2168.3 | K147: 126 | L147: 9024366.49 | M147: 2024-2025
A148: 129. | B148: г. Магнитогорск, ул. Уральская, д. 42 | C148: 1947 | E148: кирпичные | F148: 3 | G148: 3 | H148: 4516.3 | I148: 3377.3 | K148: 145 | L148: 13554372.98 | M148: 2024-2025
A149: 130. | B149: г. Магнитогорск, ул. Уральская, д. 49 | C149: 1947 | F149: 2 | G149: 2 | H149: 594.7 | I149: 520.92 | K149: 27 | L149: 67710.15 | M149: 2024-2025
A150: 131. | B150: г. Магнитогорск, ул. Уральская, д. 53 | C150: 1948 | E150: смешанные | F150: 3 | G150: 2 | H150: 1495.6 | I150: 1067.7 | K150: 57 | L150: 374036.94 | M150: 2024-2025
A151: 132. | B151: г. Магнитогорск, ул. Уральская, д. 55 | C151: 1948 | E151: смешанные | F151: 3 | G151: 4 | H151: 3089.4 | I151: 2376.5 | K151: 50 | L151: 12050725.51 | M151: 2024-2025
A152: 133. | B152: г. Магнитогорск, ул. Уральская, д. 56 | C152: 1951 | E152: смешанные | F152: 2 | G152: 3 | H152: 1534.4 | I152: 1183.6 | K152: 58 | L152: 91576.6 | M152: 2024-2025
A153: 134. | B153: г. Магнитогорск, ул. Уральская, д. 60 | C153: 1951 | E153: смешанные | F153: 2 | G153: 3 | H153: 1532.95 | I153: 1172.55 | K153: 63 | L153: 92951.99 | M153: 2024-2025
A154: 135. | B154: г. Магнитогорск, ул. Уральская, д. 67 | C154: 1948 | E154: смешанные | F154: 2 | G154: 3 | H154: 1513.8 | I154: 1193.2 | K154: 77 | L154: 5621626.18 | M154: 2024-2025
A155: 136. | B155: г. Магнитогорск, ул. Ушакова, д. 61 | C155: 1953 | E155: шлакоблочные | F155: 2 | G155: 3 | H155: 1207.5 | I155: 823.2 | K155: 54 | L155: 619108.67 | M155: 2024-2025
A156: 137. | B156: г. Магнитогорск, ул. Фрунзе, д. 3 | C156: 1937 | E156: кирпичные | F156: 5 | G156: 3 | H156: 2383.9 | I156: 2162.2 | K156: 93 | L156: 3070017.77 | M156: 2024-2025
A157: 138. | B157: г. Магнитогорск, ул. Цементная, д. 22 | C157: 1959 | E157: шлакоблочные | F157: 2 | G157: 3 | H157: 949.9 | I157: 839.9 | K157: 47 | L157: 125802.38 | M157: 2024-2025
A158: 139. | B158: г. Магнитогорск, ул. Чайковского, д. 60 | C158: 1944 | E158: шлакоблочные | F158: 3 | G158: 2 | H158: 953.92 | I158: 854.41 | K158: 46 | L158: 2241133.37 | M158: 2024-2025
A159: 140. | B159: г. Магнитогорск, ул. Чайковского, д. 61А | C159: 1942 | E159: кирпичные | F159: 5 | G159: 3 | H159: 4720.71 | I159: 4117.21 | K159: 181 | L159: 6872304.54 | M159: 2024-2025
A160: 141. | B160: г. Магнитогорск, ул. Чайковского, д. 76 | C160: 1944 | E160: кирпичные | F160: 3 | G160: 2 | H160: 1018.4 | I160: 841.59 | K160: 52 | L160: 1288206.54 | M160: 2024-2025
A161: 142. | B161: г. Магнитогорск, ул. Чапаева, д. 10 | C161: 1949 | E161: кирпичные | F161: 3 | G161: 2 | H161: 1973.8 | I161: 1138.8 | K161: 51 | L161: 3817876.88 | M161: 2024-2025
A162: 143. | B162: г. Магнитогорск, ул. Чапаева, д. 12 | C162: 1949 | E162: смешанные | F162: 3 | G162: 4 | H162: 3892.4 | I162: 2411.4 | K162: 73 | L162: 7135548.53 | M162: 2024-2025
A163: 144. | B163: г. Магнитогорск, ул. Чапаева, д. 4 | C163: 1949 | E163: смешанные | F163: 3 | G163: 4 | H163: 3587.1 | I163: 1883.2 | K163: 76 | L163: 180147.24 | M163: 2024-2025
A164: 145. | B164: г. Магнитогорск, ул. Чапаева, д. 8 | C164: 1949 | E164: смешанные | F164: 3 | G164: 4 | H164: 3811.9 | I164: 2213.9 | K164: 70 | L164: 180147.24 | M164: 2024-2025
A165: 146. | B165: г. Магнитогорск, ул. Чкалова, д. 13 | C165: 1947 | E165: кирпичные | F165: 5 | G165: 5 | H165: 7406.4 | I165: 6775.75 | K165: 283 | L165: 2460883.73 | M165: 2024-2025
A166: 147. | B166: г. Магнитогорск, ул. Чкалова, д. 19 | C166: 1949 | E166: кирпичные | F166: 3 | G166: 3 | H166: 1917.38 | I166: 1526.6 | K166: 79 | L166: 1116593.21 | M166: 2024-2025
A167: 148. | B167: г. Магнитогорск, ул. Чкалова, д. 27 | C167: 1941 | E167: кирпичные | F167: 3 | G167: 2 | H167: 944.5 | I167: 735 | K167: 51 | L167: 1883077.82 | M167: 2024-2025
A168: Итого по Магнитогорскому городскому округу | H168: =SUM(H49:H167) -> 318287.23 | I168: =SUM(I49:I167) -> 229576.76 | K168: =SUM(K49:K167) -> 9132 | L168: =SUM(L49:L167) -> 526399945.5
A169: Миасский городской округ
A170: 149. | B170: г. Миасс, ж/д ст. п. Хребет, ул. 40 лет Октября, д. 10 | C170: 1957 | E170: шлакоблочные | F170: 2 | G170: 2 | H170: 834.3 | I170: 746.3 | K170: 39 | L170: 2817168.35 | M170: 2024-2025
A171: 150. | B171: г. Миасс, ж/д ст. п. Хребет, ул. 40 лет Октября, д. 11 | C171: 1957 | E171: шлакоблочные | F171: 2 | G171: 1 | H171: 459.5 | I171: 447.7 | K171: 21 | L171: 1337759.24 | M171: 2024-2025
A172: 151. | B172: г. Миасс, ж/д ст. п. Хребет, ул. 40 лет Октября, д. 8 | C172: 1957 | E172: шлакоблочные | F172: 2 | G172: 2 | H172: 837.8 | I172: 750 | K172: 45 | L172: 862025.38 | M172: 2024-2025
A173: 152. | B173: г. Миасс, п. Нижний Атлян, ул. Городок, д. 12 | C173: 1935 | E173: кирпичные | F173: 3 | G173: 1 | H173: 350 | I173: 302.6 | K173: 19 | L173: 8152329.07 | M173: 2024-2025
A174: 153. | B174: г. Миасс, пр-кт Автозаводцев, д. 12 | C174: 1947 | E174: кирпичные | F174: 3 | G174: 3 | H174: 1592.6 | I174: 1339.3 | K174: 30 | L174: 2838758.28 | M174: 2024-2025
A175: 154. | B175: г. Миасс, пр-кт Автозаводцев, д. 19 | C175: 1956 | E175: кирпичные | F175: 5 | G175: 5 | H175: 2986.8 | I175: 2633 | K175: 54 | L175: 6375175.54 | M175: 2024-2025
A176: 155. | B176: г. Миасс, пр-кт Автозаводцев, д. 25 | C176: 1954 | E176: кирпичные | F176: 3 | G176: 2 | H176: 1243.2 | I176: 1243.2 | K176: 19 | L176: 3956731.48 | M176: 2024-2025
A177: 156. | B177: г. Миасс, пр-кт Автозаводцев, д. 26 | C177: 1953 | E177: кирпичные | F177: 3 | G177: 3 | H177: 2242.4 | I177: 2115.8 | K177: 36 | L177: 3079012.44 | M177: 2024-2025
A178: 157. | B178: г. Миасс, пр-кт Автозаводцев, д. 28 | C178: 1953 | E178: кирпичные | F178: 3 | G178: 4 | H178: 2831.5 | I178: 2057.4 | K178: 30 | L178: 4136349.81 | M178: 2024-2025
A179: 158. | B179: г. Миасс, пр-кт Макеева, д. 2 | C179: 1961 | E179: кирпичные | F179: 4 | G179: 4 | H179: 3498.1 | I179: 2051.7 | K179: 87 | L179: 5112578.5 | M179: 2024-2025
A180: 159. | B180: г. Миасс, ул. 8 Июля, д. 15 | C180: 1947 | E180: блочные | F180: 2 | G180: 2 | H180: 710.2 | I180: 710.1 | K180: 25 | L180: 4631686.33 | M180: 2024-2025
A181: 160. | B181: г. Миасс, ул. 8 Июля, д. 23 | C181: 1948 | E181: кирпичные | F181: 2 | G181: 2 | H181: 569.6 | I181: 569.2 | K181: 34 | L181: 3433046.55 | M181: 2024-2025
A182: 161. | B182: г. Миасс, ул. 8 Июля, д. 25 | C182: 1948 | E182: кирпичные | F182: 2 | G182: 2 | H182: 575.3 | I182: 574.7 | K182: 30 | L182: 28460 | M182: 2024-2025
A183: 162. | B183: г. Миасс, ул. Ильменская, д. 108 | C183: 1958 | E183: кирпичные | F183: 2 | G183: 2 | H183: 497.6 | I183: 443.8 | K183: 15 | L183: 4271062.32 | M183: 2024-2025
A184: 163. | B184: г. Миасс, ул. Ильменская, д. 124 | C184: 1958 | E184: кирпичные | F184: 2 | G184: 2 | H184: 523.5 | I184: 523.5 | K184: 26 | L184: 10289802.2 | M184: 2024-2025
A185: 164. | B185: г. Миасс, ул. Ильменская, д. 126 | C185: 1958 | E185: кирпичные | F185: 2 | G185: 2 | H185: 499.2 | I185: 443.4 | K185: 18 | L185: 6976109.86 | M185: 2024-2025
A186: 165. | B186: г. Миасс, ул. Ильменская, д. 128 | C186: 1958 | E186: кирпичные | F186: 2 | G186: 2 | H186: 506 | I186: 450.3 | K186: 25 | L186: 10537019.36 | M186: 2024-2025
A187: 166. | B187: г. Миасс, ул. Ильменская, д. 130 | C187: 1958 | E187: кирпичные | F187: 2 | G187: 2 | H187: 491 | I187: 435 | K187: 16 | L187: 10490800.4 | M187: 2024-2025
A188: 167. | B188: г. Миасс, ул. Ильменская, д. 132 | C188: 1958 | E188: кирпичные | F188: 2 | G188: 2 | H188: 493 | I188: 436.4 | K188: 28 | L188: 10646947.92 | M188: 2024-2025
A189: 168. | B189: г. Миасс, ул. Ильменская, д. 87А | C189: 1957 | E189: блочные | F189: 2 | G189: 1 | H189: 323.7 | I189: 276.7 | K189: 17 | L189: 456352.26 | M189: 2024-2025
A190: 169. | B190: г. Миасс, ул. Ильменская, д. 89 | C190: 1957 | E190: блочные | F190: 2 | G190: 1 | H190: 329.6 | I190: 291.9 | K190: 21 | L190: 464670.09 | M190: 2024-2025
A191: 170. | B191: г. Миасс, ул. Ильменская, д. 89А | C191: 1957 | E191: блочные | F191: 2 | G191: 1 | H191: 328.9 | I191: 284.7 | K191: 22 | L191: 463683.22 | M191: 2024-2025
A192: 171. | B192: г. Миасс, ул. Ильменская, д. 91 | C192: 1957 | E192: блочные | F192: 2 | G192: 1 | H192: 330.1 | I192: 286 | K192: 24 | L192: 465374.99 | M192: 2024-2025
A193: 172. | B193: г. Миасс, ул. Ильменская, д. 91А | C193: 1957 | E193: блочные | F193: 2 | G193: 1 | H193: 330.1 | I193: 286.5 | K193: 17 | L193: 465374.99 | M193: 2024-2025
A194: 173. | B194: г. Миасс, ул. Ильменская, д. 93 | C194: 1958 | E194: блочные | F194: 2 | G194: 2 | H194: 822.2 | I194: 662.74 | K194: 29 | L194: 1159137.57 | M194: 2024-2025
A195: 174. | B195: г. Миасс, ул. Ильменская, д. 93А | C195: 1957 | E195: блочные | F195: 2 | G195: 1 | H195: 324.9 | I195: 284.3 | K195: 33 | L195: 457920.95 | M195: 2024-2025
A196: 175. | B196: г. Миасс, ул. Ильмен-Тау, д. 9 | C196: 1961 | E196: кирпичные | F196: 5 | G196: 3 | H196: 3118.5 | I196: 2514.5 | K196: 139 | L196: 8620861.59 | M196: 2024-2025
A197: 176. | B197: г. Миасс, ул. Калинина, д. 19 | C197: 1948 | E197: блочные | F197: 2 | G197: 2 | H197: 743.6 | I197: 666.4 | K197: 29 | L197: 15734511.94 | M197: 2024-2025
A198: 177. | B198: г. Миасс, ул. Калинина, д. 23 | C198: 1949 | E198: блочные | F198: 2 | G198: 2 | H198: 589.9 | I198: 527.9 | K198: 12 | L198: 2327964.86 | M198: 2024-2025
A199: 178. | B199: г. Миасс, ул. Калинина, д. 25 | C199: 1947 | E199: блочные | F199: 2 | G199: 2 | H199: 863.2 | I199: 641.6 | K199: 34 | L199: 2728929.44 | M199: 2024-2025
A200: 179. | B200: г. Миасс, ул. Калинина, д. 33 | C200: 1949 | E200: блочные | F200: 2 | G200: 2 | H200: 753.4 | I200: 624.1 | K200: 20 | L200: 4311543.03 | M200: 2024-2025
A201: 180. | B201: г. Миасс, ул. Нахимова, д. 2Б | C201: 1957 | E201: кирпичные | F201: 2 | G201: 2 | H201: 710.2 | I201: 710.2 | K201: 29 | L201: 1002798.7 | M201: 2024-2025
A202: 181. | B202: г. Миасс, ул. Победы, д. 11 | C202: 1955 | E202: кирпичные | F202: 2 | G202: 3 | H202: 1493.4 | I202: 1298.9 | K202: 55 | L202: 2983478.23 | M202: 2024-2025
... 557 more rows

Sheet Лист5
